﻿Body Name,Service Area,Expense Type,Payment Date,Invoice Distribution Amount,Supplier Name
Bolton MBC,Adult Services ,Partnership Staff,02-Apr-2020,5500.99,Bolton NHS Foundation Trust#1
Bolton MBC,Adult Services ,Other Fees,27-Apr-2020,4403.28,JLA Total Care Ltd
Bolton MBC,Adult Services ,Residential Provision,07-Apr-2020,"64,679.17",Abafields Residential Home
Bolton MBC,Adult Services ,Residential Provision,07-Apr-2020,3132.85,Abafields Residential Home
Bolton MBC,Adult Services ,Residential Provision,07-Apr-2020,4367.14,Abbey Healthcare (Farnworth) Limited
Bolton MBC,Adult Services ,Residential Provision,07-Apr-2020,2185.72,Abbey Healthcare (Farnworth) Limited
Bolton MBC,Adult Services ,Residential Provision,07-Apr-2020,"10,388.49",Abbeycliffe Residential Care Home
Bolton MBC,Adult Services ,Residential Provision,07-Apr-2020,2267.60,Abbeydale Nursing Home
Bolton MBC,Adult Services ,Residential Provision,07-Apr-2020,"7,320.75",Abbeydale Residential Care Home
Bolton MBC,Adult Services ,Residential Provision,07-Apr-2020,9025.00,Agricola House
Bolton MBC,Adult Services ,Residential Provision,07-Apr-2020,"2,985.90",Alma Green Residential Care Home
Bolton MBC,Adult Services ,Residential Provision,07-Apr-2020,2570.00,Ashton View Nursing Home
Bolton MBC,Adult Services ,Residential Provision,07-Apr-2020,"71,756.63",Astley Grange Homes Limited
Bolton MBC,Adult Services ,Residential Provision,07-Apr-2020,2860.25,Bank House Care Home#1
Bolton MBC,Adult Services ,Residential Provision,07-Apr-2020,"2,583.70",Beechfield Lodge#Anchor Trust
Bolton MBC,Adult Services ,Residential Provision,07-Apr-2020,"39,493.51",Beechville Care Home
Bolton MBC,Adult Services ,Residential Provision,07-Apr-2020,2550.00,Blackrod House Limited
Bolton MBC,Adult Services ,Residential Provision,07-Apr-2020,1529.99,Blackrod House Limited
Bolton MBC,Adult Services ,Residential Provision,07-Apr-2020,2640.25,Bridge House Residential Care Home
Bolton MBC,Adult Services ,Nursing Provision,07-Apr-2020,"3,072.50",Broadoak Manor Care Home
Bolton MBC,Adult Services ,Residential Provision,07-Apr-2020,2333.70,Broughton House#EPH
Bolton MBC,Adult Services ,Residential Provision,07-Apr-2020,"21,563.09",Burrswood House
Bolton MBC,Adult Services ,Residential Provision,07-Apr-2020,"2,500.00",Cleggsworth Care Home Limited
Bolton MBC,Adult Services ,Residential Provision,07-Apr-2020,2641.80,Coniston House Care Home
Bolton MBC,Adult Services ,Residential Provision,07-Apr-2020,"2,500.00",Cressingham House
Bolton MBC,Adult Services ,Residential Provision,07-Apr-2020,2641.80,Dove Court Care Home
Bolton MBC,Adult Services ,Nursing Provision,07-Apr-2020,"2,895.00",Dundoran Nursing Home
Bolton MBC,Adult Services ,Residential Provision,07-Apr-2020,4667.40,Ecclesholme
Bolton MBC,Adult Services ,Residential Provision,07-Apr-2020,4750.00,Eden Mansions
Bolton MBC,Adult Services ,Residential Provision,07-Apr-2020,2550.00,Four Seasons Nursing Home
Bolton MBC,Adult Services ,Residential Provision,07-Apr-2020,2833.10,Gedling Village Care Home
Bolton MBC,Adult Services ,Residential Provision,07-Apr-2020,"23,332.14",Glenhomes Care Home
Bolton MBC,Adult Services ,Residential Provision,07-Apr-2020,632.86,Glenhomes Care Home
Bolton MBC,Adult Services ,Residential Provision,07-Apr-2020,"34,842.86",Grange Lea Residential Care Home Limited
Bolton MBC,Adult Services ,Residential Provision,07-Apr-2020,4590.00,Greenacres Care Home
Bolton MBC,Adult Services ,Residential Provision,07-Apr-2020,3347.14,Greenlands Residential Home Limited
Bolton MBC,Adult Services ,Residential Provision,07-Apr-2020,2945.90,Hatfield Residential And Nursing Home
Bolton MBC,Adult Services ,Residential Provision,07-Apr-2020,"4,134.21",Henshaws Society For The Blind
Bolton MBC,Adult Services ,Nursing Provision,07-Apr-2020,2625.00,High Peak Lodge Residential and Nursing Home
Bolton MBC,Adult Services ,Residential Provision,07-Apr-2020,3250.00,Hillcrest Care Home
Bolton MBC,Adult Services ,Residential Provision,07-Apr-2020,"33,315.00",Hyde  Lea
Bolton MBC,Adult Services ,Residential Provision,07-Apr-2020,"3,186.65",Jasmine Court
Bolton MBC,Adult Services ,Vol Assoc Grants - General,23-Apr-2020,"92,096.08",Jewel Home Support Ltd
Bolton MBC,Adult Services ,Residential Provision,07-Apr-2020,2775.95,Kirby House
Bolton MBC,Adult Services ,Residential Provision,07-Apr-2020,"5,561.70",Lauren Court Residential Care Home
Bolton MBC,Adult Services ,Residential Provision,07-Apr-2020,"154,422.00",Lever Edge Care Home
Bolton MBC,Adult Services ,Residential Provision,07-Apr-2020,8577.43,Lever Edge Care Home
Bolton MBC,Adult Services ,Nursing Provision,07-Apr-2020,3033.90,Mapleford Nursing Home
Bolton MBC,Adult Services ,Nursing Provision,07-Apr-2020,"5,945.50",Marley Court  Nursing & Residentail Home
Bolton MBC,Adult Services ,Residential Provision,07-Apr-2020,"28,800.00",Max Potential UK Limited
Bolton MBC,Adult Services ,Residential Provision,07-Apr-2020,3095.14,Mayflower Court Residential Home
Bolton MBC,Adult Services ,Residential Provision,07-Apr-2020,"3,640.00",McAuley Mount Care Home
Bolton MBC,Adult Services ,Residential Provision,07-Apr-2020,"8,143.65",Meadow Bank Nursing Home
Bolton MBC,Adult Services ,Residential Provision,07-Apr-2020,2550.00,Mill View Care Home
Bolton MBC,Adult Services ,Nursing Provision,07-Apr-2020,"8,077.63",Mill View Care Home
Bolton MBC,Adult Services ,Nursing Provision,07-Apr-2020,"358,581.09",Mill View Care Home
Bolton MBC,Adult Services ,Residential Provision,07-Apr-2020,"25,258.28",Morgan Care Ltd
Bolton MBC,Adult Services ,Nursing Provision,07-Apr-2020,7865.00,Moston Grange Nursing Home
Bolton MBC,Adult Services ,Residential Provision,07-Apr-2020,"2,991.80",Nightingales Care Limited
Bolton MBC,Adult Services ,Residential Provision,07-Apr-2020,2730.70,Orchard Court
Bolton MBC,Adult Services ,Residential Provision,07-Apr-2020,2625.00,Orton House
Bolton MBC,Adult Services ,Residential Provision,07-Apr-2020,"4,101.10",Park Lane Healthcare (Croston Park) Limited
Bolton MBC,Adult Services ,Residential Provision,07-Apr-2020,"88,171.61",Parkview Nursing & Residential Home
Bolton MBC,Adult Services ,Residential Provision,07-Apr-2020,5475.00,Parkview Nursing & Residential Home
Bolton MBC,Adult Services ,Residential Provision,07-Apr-2020,4000.00,Pemberley House
Bolton MBC,Adult Services ,Contracted Services,20-Apr-2020,1056.51,Recovery Support Ltd
Bolton MBC,Adult Services ,Residential Provision,07-Apr-2020,9993.85,Redford Court
Bolton MBC,Adult Services ,Residential Provision,07-Apr-2020,2524.70,Richmond Care Home
Bolton MBC,Adult Services ,Residential Provision,07-Apr-2020,7590.00,Riverside House
Bolton MBC,Adult Services ,Residential Provision,07-Apr-2020,2739.30,Rivington Park Care Home
Bolton MBC,Adult Services ,Residential Provision,07-Apr-2020,"4,554.64",Rivington View Nursing Home
Bolton MBC,Adult Services ,Nursing Provision,07-Apr-2020,"30,070.55",Rose Court Nursing Home
Bolton MBC,Adult Services ,Nursing Provision,07-Apr-2020,"10,523.67",Scorton Care Village
Bolton MBC,Adult Services ,Residential Provision,07-Apr-2020,2332.75,Southview Lodge Residential Care Home
Bolton MBC,Adult Services ,Residential Provision,07-Apr-2020,"9,914.85",Starmount Villa Residential Care Home
Bolton MBC,Adult Services ,Residential Provision,07-Apr-2020,"51,250.00",Sunnyside Residential Home
Bolton MBC,Adult Services ,Residential Provision,07-Apr-2020,"11,971.43",Take a Break with Choices
Bolton MBC,Adult Services ,Residential Provision,07-Apr-2020,7000.00,Take a Break with Choices
Bolton MBC,Adult Services ,Residential Provision,07-Apr-2020,2836.65,The Beeches Nursing Home
Bolton MBC,Adult Services ,Residential Provision,07-Apr-2020,3634.28,The Bungalow Residential Home
Bolton MBC,Adult Services ,Residential Provision,07-Apr-2020,"45,110.71",The Clough Residential Home
Bolton MBC,Adult Services ,Residential Provision,07-Apr-2020,"8,824.28",The Clough Residential Home
Bolton MBC,Adult Services ,Nursing Provision,07-Apr-2020,3153.75,The Conifers Nursing Home
Bolton MBC,Adult Services ,Residential Provision,07-Apr-2020,2836.65,The Grange Residential Care Home
Bolton MBC,Adult Services ,Residential Provision,07-Apr-2020,2205.00,The Hamiltons Care Home
Bolton MBC,Adult Services ,Residential Provision,07-Apr-2020,"31,483.74",The Meadows
Bolton MBC,Adult Services ,Residential Provision,07-Apr-2020,4250.00,The Spires
Bolton MBC,Adult Services ,Residential Provision,07-Apr-2020,11112.45,Voyage Care
Bolton MBC,Adult Services ,Residential Provision,07-Apr-2020,"7,915.25",Walshaw Hall & The Beeches R C H
Bolton MBC,Adult Services ,Residential Provision,07-Apr-2020,2440.25,Walshaw Hall Residential Home
Bolton MBC,Adult Services ,Nursing Provision,07-Apr-2020,"2,972.75",Walton House Nursing Home
Bolton MBC,Adult Services ,Residential Provision,07-Apr-2020,"3,075.65",Wentworth House Care Services Ltd
Bolton MBC,Adult Services ,Residential Provision,07-Apr-2020,5810.24,West House Residential Home
Bolton MBC,Adult Services ,Nursing Provision,07-Apr-2020,"3,452.80",Westleigh Lodge#Westleigh Lodge Care Home
Bolton MBC,Adult Services ,Residential Provision,07-Apr-2020,2641.80,Westwood Residential Care Home
Bolton MBC,Adult Services ,Residential Provision,07-Apr-2020,"2,508.25",Whitefield House
Bolton MBC,Adult Services ,Shared Lives,06-Apr-2020,1196.10,Wigan Council-Shared Lives
Bolton MBC,Adult Services ,Residential Provision,07-Apr-2020,"75,860.00",Wingates Residential Home
Bolton MBC,Adult Services ,Residential Provision,07-Apr-2020,"92,672.89",Withins Residential Home
Bolton MBC,Adult Services ,Residential Provision,07-Apr-2020,"6,321.43",Withins Residential Home
Bolton MBC,Adult Services ,Residential Provision,07-Apr-2020,6611.72,Woodlands Court Residential Home
Bolton MBC,Adult Services ,Residential Provision,07-Apr-2020,"48,125.00",Woodlands Westhoughton
Bolton MBC,Adult Services ,Contracted Services,30-Apr-2020,1105.75,RNHS Ltd
Bolton MBC,Adult Services ,Contracted Services,30-Apr-2020,2000.00,Bridgewater Home Care
Bolton MBC,Adult Services ,Contracted Services,06-Apr-2020,1456.00,Bridgewater Home Care
Bolton MBC,Adult Services ,Contracted Services,23-Apr-2020,1740.40,Diamond Care Services Ltd
Bolton MBC,Adult Services ,Contracted Services,23-Apr-2020,1295.91,Eden Care Support Services Ltd
Bolton MBC,Adult Services ,Contracted Services,23-Apr-2020,1178.10,Eden Care Support Services Ltd
Bolton MBC,Adult Services ,Contracted Services,20-Apr-2020,1134.45,Eden Care Support Services Ltd
Bolton MBC,Adult Services ,Contracted Services,23-Apr-2020,1127.61,Eden Care Support Services Ltd
Bolton MBC,Adult Services ,Contracted Services,20-Apr-2020,1086.39,Eden Care Support Services Ltd
Bolton MBC,Adult Services ,Contracted Services,20-Apr-2020,905.94,Eden Care Support Services Ltd
Bolton MBC,Adult Services ,Contracted Services,23-Apr-2020,786.82,Eden Care Support Services Ltd
Bolton MBC,Adult Services ,Contracted Services,23-Apr-2020,719.41,Eden Care Support Services Ltd
Bolton MBC,Adult Services ,Contracted Services,23-Apr-2020,706.86,Eden Care Support Services Ltd
Bolton MBC,Adult Services ,Contracted Services,02-Apr-2020,685.95,Eden Care Support Services Ltd
Bolton MBC,Adult Services ,Contracted Services,23-Apr-2020,680.67,Eden Care Support Services Ltd
Bolton MBC,Adult Services ,Contracted Services,02-Apr-2020,666.12,Eden Care Support Services Ltd
Bolton MBC,Adult Services ,Contracted Services,23-Apr-2020,639.54,Eden Care Support Services Ltd
Bolton MBC,Adult Services ,Contracted Services,23-Apr-2020,622.71,Eden Care Support Services Ltd
Bolton MBC,Adult Services ,Contracted Services,20-Apr-2020,615.29,Eden Care Support Services Ltd
Bolton MBC,Adult Services ,Contracted Services,20-Apr-2020,599.62,Eden Care Support Services Ltd
Bolton MBC,Adult Services ,Contracted Services,27-Apr-2020,1437.66,FCNA Homecare (First Call Nursing Agency)
Bolton MBC,Adult Services ,Contracted Services,02-Apr-2020,1194.48,FCNA Homecare (First Call Nursing Agency)
Bolton MBC,Adult Services ,Contracted Services,27-Apr-2020,866.13,FCNA Homecare (First Call Nursing Agency)
Bolton MBC,Adult Services ,Contracted Services,02-Apr-2020,702.60,FCNA Homecare (First Call Nursing Agency)
Bolton MBC,Adult Services ,Contracted Services,20-Apr-2020,2630.32,Human Support Group#Homecare Support
Bolton MBC,Adult Services ,Contracted Services,06-Apr-2020,1008.24,Jewel Home Support Ltd
Bolton MBC,Adult Services ,Other Fees,30-Apr-2020,2486.76,Keymen Associates Ltd#Mayday Homecare
Bolton MBC,Adult Services ,Contracted Services,27-Apr-2020,3742.96,Orchid Home Care Support
Bolton MBC,Adult Services ,Contracted Services,27-Apr-2020,3552.64,Orchid Home Care Support
Bolton MBC,Adult Services ,Contracted Services,30-Apr-2020,2315.56,Orchid Home Care Support
Bolton MBC,Adult Services ,Contracted Services,30-Apr-2020,2220.40,Orchid Home Care Support
Bolton MBC,Adult Services ,Contracted Services,30-Apr-2020,1998.36,Orchid Home Care Support
Bolton MBC,Adult Services ,Contracted Services,30-Apr-2020,1554.28,Orchid Home Care Support
Bolton MBC,Adult Services ,Contracted Services,27-Apr-2020,1221.08,Orchid Home Care Support
Bolton MBC,Adult Services ,Contracted Services,27-Apr-2020,1173.64,Orchid Home Care Support
Bolton MBC,Adult Services ,Contracted Services,30-Apr-2020,1110.20,Orchid Home Care Support
Bolton MBC,Adult Services ,Contracted Services,27-Apr-2020,1110.20,Orchid Home Care Support
Bolton MBC,Adult Services ,Contracted Services,30-Apr-2020,1094.20,Orchid Home Care Support
Bolton MBC,Adult Services ,Contracted Services,30-Apr-2020,1046.76,Orchid Home Care Support
Bolton MBC,Adult Services ,Contracted Services,30-Apr-2020,951.60,Orchid Home Care Support
Bolton MBC,Adult Services ,Contracted Services,30-Apr-2020,932.36,Orchid Home Care Support
Bolton MBC,Adult Services ,Contracted Services,30-Apr-2020,888.44,Orchid Home Care Support
Bolton MBC,Adult Services ,Contracted Services,30-Apr-2020,888.16,Orchid Home Care Support
Bolton MBC,Adult Services ,Contracted Services,06-Apr-2020,850.92,Orchid Home Care Support
Bolton MBC,Adult Services ,Contracted Services,23-Apr-2020,793.00,Orchid Home Care Support
Bolton MBC,Adult Services ,Contracted Services,30-Apr-2020,793.00,Orchid Home Care Support
Bolton MBC,Adult Services ,Contracted Services,30-Apr-2020,740.20,Orchid Home Care Support
Bolton MBC,Adult Services ,Contracted Services,30-Apr-2020,666.12,Orchid Home Care Support
Bolton MBC,Adult Services ,Contracted Services,27-Apr-2020,539.26,Orchid Home Care Support
Bolton MBC,Adult Services ,Contracted Services,30-Apr-2020,539.24,Orchid Home Care Support
Bolton MBC,Adult Services ,Contracted Services,30-Apr-2020,507.52,Orchid Home Care Support
Bolton MBC,Adult Services ,Contracted Services,27-Apr-2020,507.52,Orchid Home Care Support
Bolton MBC,Adult Services ,Contracted Services,16-Apr-2020,1186.62,Recovery Support Ltd
Bolton MBC,Adult Services ,Contracted Services,16-Apr-2020,603.99,Recovery Support Ltd
Bolton MBC,Adult Services ,Vol Assoc Grants - General,20-Apr-2020,"30,918.44",RNHS Ltd
Bolton MBC,Adult Services ,Contracted Services,30-Apr-2020,947.02,RNHS Ltd
Bolton MBC,Adult Services ,Contracted Services,23-Apr-2020,897.84,RNHS Ltd
Bolton MBC,Adult Services ,Vol Assoc Grants - General,30-Apr-2020,72686.29,SureCare Bolton#Sakinas Healthcare Limited
Bolton MBC,Adult Services ,Contracted Services,14-Apr-2020,5955.04,SureCare Bolton#Sakinas Healthcare Limited
Bolton MBC,Adult Services ,Contracted Services,30-Apr-2020,2703.48,SureCare Bolton#Sakinas Healthcare Limited
Bolton MBC,Adult Services ,Contracted Services,23-Apr-2020,1672.52,Yasnad Ltd t/a Bluebird Care Bury
Bolton MBC,Adult Services ,Contracted Services,30-Apr-2020,1631.02,Yasnad Ltd t/a Bluebird Care Bury
Bolton MBC,Adult Services ,Contracted Services,30-Apr-2020,1497.61,Yasnad Ltd t/a Bluebird Care Bury
Bolton MBC,Adult Services ,Contracted Services,23-Apr-2020,1304.82,Yasnad Ltd t/a Bluebird Care Bury
Bolton MBC,Adult Services ,Contracted Services,30-Apr-2020,1289.56,Yasnad Ltd t/a Bluebird Care Bury
Bolton MBC,Adult Services ,Contracted Services,23-Apr-2020,1145.46,Yasnad Ltd t/a Bluebird Care Bury
Bolton MBC,Adult Services ,Contracted Services,06-Apr-2020,1030.95,Your Care (UK) Limited
Bolton MBC,Adult Services ,Catering Provisions-Food,20-Apr-2020,909.12,Kitchequip.co.uk#Factor Kitchequip
Bolton MBC,Adult Services ,Contracted Services,23-Apr-2020,4964.92,Brothers Of Charity Services
Bolton MBC,Adult Services ,Vol Assoc Grants - General,23-Apr-2020,"18,255.53",Creative Support Limited#3
Bolton MBC,Adult Services ,Vol Assoc Grants - General,23-Apr-2020,"25,179.06",Lifeways Community Care
Bolton MBC,Adult Services ,Vol Assoc Grants - General,23-Apr-2020,"20,059.68",Lifeways Community Care
Bolton MBC,Adult Services ,Vol Assoc Grants - General,23-Apr-2020,"19,328.26",Lifeways Community Care
Bolton MBC,Adult Services ,Vol Assoc Grants - General,23-Apr-2020,"18,181.06",Lifeways Community Care
Bolton MBC,Adult Services ,Vol Assoc Grants - General,23-Apr-2020,"16,116.18",Lifeways Community Care
Bolton MBC,Adult Services ,Vol Assoc Grants - General,23-Apr-2020,"15,377.30",Lifeways Community Care
Bolton MBC,Adult Services ,Contracted Services,23-Apr-2020,"14,411.76",Lifeways Community Care
Bolton MBC,Adult Services ,Contracted Services,23-Apr-2020,"14,036.86",Lifeways Community Care
Bolton MBC,Adult Services ,Contracted Services,23-Apr-2020,"13,928.11",Lifeways Community Care
Bolton MBC,Adult Services ,Contracted Services,23-Apr-2020,"12,826.56",Lifeways Community Care
Bolton MBC,Adult Services ,Contracted Services,23-Apr-2020,"12,774.96",Lifeways Community Care
Bolton MBC,Adult Services ,Contracted Services,16-Apr-2020,6041.88,Linden Walk
Bolton MBC,Adult Services ,Contracted Services,23-Apr-2020,"10,870.88",Putting You First Ltd#Your Life Your Way
Bolton MBC,Adult Services ,Vol Assoc Grants - General,23-Apr-2020,15944.32,REDACTED - Personal Data
Bolton MBC,Adult Services ,Contracted Services,16-Apr-2020,7894.98,REDACTED - Personal Data
Bolton MBC,Adult Services ,Contracted Services,23-Apr-2020,4659.48,Royal House
Bolton MBC,Adult Services ,Contracted Services,23-Apr-2020,4141.76,Royal House
Bolton MBC,Adult Services ,Contracted Services,23-Apr-2020,3624.04,Royal House
Bolton MBC,Adult Services ,Contracted Services,23-Apr-2020,3106.32,Royal House
Bolton MBC,Adult Services ,Vol Assoc Grants - General,09-Apr-2020,33946.48,The Together Trust
Bolton MBC,Adult Services ,Vol Assoc Grants - General,30-Apr-2020,33946.48,The Together Trust
Bolton MBC,Adult Services ,Vol Assoc Grants - General,06-Apr-2020,"35,495.59",CRG Limited#Homecare
Bolton MBC,Adult Services ,Contracted Services,23-Apr-2020,706.06,Eden Care Support Services Ltd
Bolton MBC,Adult Services ,Contracted Services,23-Apr-2020,680.67,Eden Care Support Services Ltd
Bolton MBC,Adult Services ,Contracted Services,27-Apr-2020,629.02,FCNA Homecare (First Call Nursing Agency)
Bolton MBC,Adult Services ,Contracted Services,30-Apr-2020,1617.72,Orchid Home Care Support
Bolton MBC,Adult Services ,Contracted Services,30-Apr-2020,628.88,Orchid Home Care Support
Bolton MBC,Adult Services ,Vol Assoc Grants - General,23-Apr-2020,"15,665.03",Premier Care Limited
Bolton MBC,Adult Services ,Contracted Services,14-Apr-2020,864.00,SEA Recruitment Services Limited
Bolton MBC,Adult Services ,Contracted Services,09-Apr-2020,822.72,SignHealth#The Deaf Health Charity
Bolton MBC,Adult Services ,Residential Provision,07-Apr-2020,"5,280.00",Ash Tree House
Bolton MBC,Adult Services ,Residential Provision,07-Apr-2020,"8,720.28",Bascombe Court
Bolton MBC,Adult Services ,Nursing Provision,07-Apr-2020,"7,155.00",Bedford Residential Nursing Care Home
Bolton MBC,Adult Services ,Residential Provision,07-Apr-2020,"5,000.00",Birch Hall Care Centre
Bolton MBC,Adult Services ,Residential Provision,07-Apr-2020,"46,131.54",Blackrod House Limited
Bolton MBC,Adult Services ,Residential Provision,07-Apr-2020,"1,952.20",Cameron House Care Home#Roseberry
Bolton MBC,Adult Services ,Residential Provision,07-Apr-2020,"216,780.17",Four Seasons Nursing Home
Bolton MBC,Adult Services ,Residential Provision,07-Apr-2020,"17,245.71",Glenbank Care Home Ltd
Bolton MBC,Adult Services ,Residential Provision,07-Apr-2020,"33,077.15",Greenlands Residential Home Limited
Bolton MBC,Adult Services ,Residential Provision,07-Apr-2020,"5,120.40",Half Acre Care Home
Bolton MBC,Adult Services ,Residential Provision,07-Apr-2020,2641.80,Highcliffe Residential Home#Teamcare Ltd
Bolton MBC,Adult Services ,Residential Provision,07-Apr-2020,2941.65,Highfield Hall
Bolton MBC,Adult Services ,Residential Provision,07-Apr-2020,2332.75,Highgrove House#1
Bolton MBC,Adult Services ,Residential Provision,07-Apr-2020,"8,505.00",Hollands Nursing Home
Bolton MBC,Adult Services ,Residential Provision,07-Apr-2020,"11,025.05",Hollybank Care Home
Bolton MBC,Adult Services ,Residential Provision,07-Apr-2020,5140.00,Jah Jireh Nursing Home
Bolton MBC,Adult Services ,Residential Provision,07-Apr-2020,"14,115.75",Knightswood Residential Home
Bolton MBC,Adult Services ,Nursing Provision,07-Apr-2020,"3,765.65",Larkhall Springs
Bolton MBC,Adult Services ,Residential Provision,07-Apr-2020,"86,609.09",Meadowbank House
Bolton MBC,Adult Services ,Residential Provision,07-Apr-2020,2332.75,Nazareth Care Charitable Trust
Bolton MBC,Adult Services ,Residential Provision,07-Apr-2020,"128,890.78",Shannon Court Care Home Limited
Bolton MBC,Adult Services ,Residential Provision,07-Apr-2020,"19,940.00",Spennymoor Care Home Ltd
Bolton MBC,Adult Services ,Residential Provision,07-Apr-2020,"22,179.56",The Bungalow Residential Home
Bolton MBC,Adult Services ,Residential Provision,07-Apr-2020,4969.35,The Orchard
Bolton MBC,Adult Services ,Residential Provision,07-Apr-2020,2861.10,The Spinal Unit Action Group
Bolton MBC,Adult Services ,Residential Provision,07-Apr-2020,"31,527.86",Woodlands House Residential Home Ltd
Bolton MBC,Adult Services ,Residential Provision,07-Apr-2020,2333.70,Worsley Lodge Nursing Home
Bolton MBC,Adult Services ,Contracted Services,09-Apr-2020,2900.00,Access to Care Limited
Bolton MBC,Adult Services ,Contracted Services,09-Apr-2020,2900.00,Access to Care Limited
Bolton MBC,Adult Services ,Contracted Services,02-Apr-2020,2900.00,Access to Care Limited
Bolton MBC,Adult Services ,Contracted Services,09-Apr-2020,2900.00,Access to Care Limited
Bolton MBC,Adult Services ,Contracted Services,09-Apr-2020,2900.00,Access to Care Limited
Bolton MBC,Adult Services ,Contracted Services,14-Apr-2020,2900.00,Access to Care Limited
Bolton MBC,Adult Services ,Vol Assoc Grants - General,09-Apr-2020,"40,970.96",Ashness Place
Bolton MBC,Adult Services ,Contracted Services,02-Apr-2020,2900.00,Bateman Street
Bolton MBC,Adult Services ,Contracted Services,02-Apr-2020,2900.00,Bateman Street
Bolton MBC,Adult Services ,Contracted Services,02-Apr-2020,2900.00,Bateman Street
Bolton MBC,Adult Services ,Contracted Services,14-Apr-2020,2900.00,Bateman Street
Bolton MBC,Adult Services ,Vol Assoc Grants - General,09-Apr-2020,"19,096.00",Companion Support Services Limited
Bolton MBC,Adult Services ,Vol Assoc Grants - General,23-Apr-2020,"32,076.59",Creative Support Limited#3
Bolton MBC,Adult Services ,Vol Assoc Grants - General,23-Apr-2020,"27,237.80",Creative Support Limited#3
Bolton MBC,Adult Services ,Contracted Services - Rental Voids,20-Apr-2020,4514.28,Inclusion Housing CIC Limited
Bolton MBC,Adult Services ,Contracted Services - Rental Voids,23-Apr-2020,2146.05,Inclusion Housing CIC Limited
Bolton MBC,Adult Services ,Vol Assoc Grants - General,23-Apr-2020,"25,123.68",Lifeways Community Care
Bolton MBC,Adult Services ,Vol Assoc Grants - General,23-Apr-2020,"20,305.50",Lifeways Community Care
Bolton MBC,Adult Services ,Vol Assoc Grants - General,23-Apr-2020,"20,016.74",Lifeways Community Care
Bolton MBC,Adult Services ,Vol Assoc Grants - General,23-Apr-2020,"18,621.69",Lifeways Community Care
Bolton MBC,Adult Services ,Vol Assoc Grants - General,23-Apr-2020,"18,618.18",Lifeways Community Care
Bolton MBC,Adult Services ,Vol Assoc Grants - General,23-Apr-2020,"17,040.78",Lifeways Community Care
Bolton MBC,Adult Services ,Vol Assoc Grants - General,23-Apr-2020,"16,087.42",Lifeways Community Care
Bolton MBC,Adult Services ,Vol Assoc Grants - General,23-Apr-2020,"15,614.20",Lifeways Community Care
Bolton MBC,Adult Services ,Contracted Services,23-Apr-2020,"14,803.70",Lifeways Community Care
Bolton MBC,Adult Services ,Contracted Services,23-Apr-2020,"13,190.74",Lifeways Community Care
Bolton MBC,Adult Services ,Contracted Services,23-Apr-2020,"10,925.10",Lifeways Community Care
Bolton MBC,Adult Services ,Contracted Services,23-Apr-2020,"9,103.92",Lifeways Community Care
Bolton MBC,Adult Services ,Contracted Services,09-Apr-2020,"10,870.88",Putting You First Ltd#Your Life Your Way
Bolton MBC,Adult Services ,Contracted Services,27-Apr-2020,12425.28,Royal House
Bolton MBC,Adult Services ,Contracted Services,27-Apr-2020,12425.28,Royal House
Bolton MBC,Adult Services ,Contracted Services,23-Apr-2020,2070.88,Royal House
Bolton MBC,Adult Services ,Contracted Services,09-Apr-2020,"14,238.00",SEA Recruitment Services Limited
Bolton MBC,Adult Services ,Vol Assoc Grants - General,30-Apr-2020,26647.33,Shenton House
Bolton MBC,Adult Services ,Contracted Services,06-Apr-2020,1260.60,Shenton House
Bolton MBC,Adult Services ,Contracted Services,23-Apr-2020,11256.16,The Oaks#1
Bolton MBC,Adult Services ,Vol Assoc Grants - General,14-Apr-2020,39453.10,Viewfield Mews
Bolton MBC,Adult Services ,Contracted Services,30-Apr-2020,1490.84,Orchid Home Care Support
Bolton MBC,Adult Services ,Residential Provision,07-Apr-2020,31087.75,Bannister Farm Cottage
Bolton MBC,Adult Services ,Nursing Provision,07-Apr-2020,20122.20,Berkeley House
Bolton MBC,Adult Services ,Residential Provision,07-Apr-2020,7073.70,Bluebell Cottage Veedale
Bolton MBC,Adult Services ,Residential Provision,07-Apr-2020,17387.80,Brookvale
Bolton MBC,Adult Services ,Nursing Provision,27-Apr-2020,1712.76,Brothers Of Charity Services
Bolton MBC,Adult Services ,Residential Provision,07-Apr-2020,33500.00,Cornerstone Trust
Bolton MBC,Adult Services ,Residential Provision,07-Apr-2020,20914.50,Craegmoor Arden College Priory
Bolton MBC,Adult Services ,Residential Provision,07-Apr-2020,22606.25,Denstone Crescent
Bolton MBC,Adult Services ,Residential Provision,07-Apr-2020,11797.15,Ellershaw House Ltd
Bolton MBC,Adult Services ,Residential Provision,07-Apr-2020,25778.75,Heaton Vale
Bolton MBC,Adult Services ,Residential Provision,07-Apr-2020,9392.50,HF Trust Limited Honeysuckle House
Bolton MBC,Adult Services ,Residential Provision,07-Apr-2020,15773.45,Kingarth
Bolton MBC,Adult Services ,Residential Provision,07-Apr-2020,25380.25,Mencap
Bolton MBC,Adult Services ,Residential Provision,07-Apr-2020,17283.30,Millbrook Way - Heathwaite
Bolton MBC,Adult Services ,Residential Provision,07-Apr-2020,"6,869.81",Options Vernon
Bolton MBC,Adult Services ,Residential Provision,07-Apr-2020,"6,301.41",Redbank Care Home#Payee Voyage North
Bolton MBC,Adult Services ,Residential Provision,07-Apr-2020,19748.30,Segal Gardens
Bolton MBC,Adult Services ,Residential Provision,07-Apr-2020,"5,081.31",Stanley Grange#1
Bolton MBC,Adult Services ,Residential Provision,07-Apr-2020,14514.75,The David Lewis Centre
Bolton MBC,Adult Services ,Residential Provision,07-Apr-2020,"2,766.80",The Grove Care Home
Bolton MBC,Adult Services ,Nursing Provision,07-Apr-2020,75167.50,Vale House
Bolton MBC,Adult Services ,Residential Provision,07-Apr-2020,59605.00,Westmead
Bolton MBC,Adult Services ,Contracted Services,09-Apr-2020,"9,188.26",Mary Seacole House
Bolton MBC,Adult Services ,Contracted Services,30-Apr-2020,"9,188.26",Mary Seacole House
Bolton MBC,Adult Services ,Residential Provision,07-Apr-2020,"182,076.88",Abbey Healthcare (Farnworth) Limited
Bolton MBC,Adult Services ,Residential Provision,07-Apr-2020,5670.00,Ansar Projects
Bolton MBC,Adult Services ,Nursing Provision,07-Apr-2020,"10,056.95",Belong Atherton#EPH
Bolton MBC,Adult Services ,Residential Provision,07-Apr-2020,2840.00,Belong Wigan#2
Bolton MBC,Adult Services ,Residential Provision,07-Apr-2020,3425.00,Brookfield Residential Care Home Ltd
Bolton MBC,Adult Services ,Residential Provision,07-Apr-2020,4829.95,Browfield Residential Care Home
Bolton MBC,Adult Services ,Nursing Provision,07-Apr-2020,"4,960.00",Carders Court Care Home
Bolton MBC,Adult Services ,Residential Provision,07-Apr-2020,2274.25,Carr Bank House
Bolton MBC,Adult Services ,Residential Provision,07-Apr-2020,"31,500.00",Chorley House
Bolton MBC,Adult Services ,Residential Provision,07-Apr-2020,6912.15,Church View
Bolton MBC,Adult Services ,Vol Assoc Grants - General,09-Apr-2020,16040.08,Companion Support Services Limited
Bolton MBC,Adult Services ,Vol Assoc Grants - General,09-Apr-2020,16040.08,Companion Support Services Limited
Bolton MBC,Adult Services ,Nursing Provision,07-Apr-2020,4207.50,Crystal Hall Care Home
Bolton MBC,Adult Services ,Residential Provision,07-Apr-2020,"3,812.45",Eachstep Blackley
Bolton MBC,Adult Services ,Residential Provision,07-Apr-2020,5824.40,Fosse Bank House
Bolton MBC,Adult Services ,Residential Provision,07-Apr-2020,"6,440.25",GHS Brookdale
Bolton MBC,Adult Services ,Nursing Provision,07-Apr-2020,"6,436.50",Gillibrand Hall Nursing Home
Bolton MBC,Adult Services ,Residential Provision,07-Apr-2020,"38,614.75",Gorsey Clough Nursing Home Ltd
Bolton MBC,Adult Services ,Residential Provision,07-Apr-2020,"25,361.40",Hartington House
Bolton MBC,Adult Services ,Residential Provision,07-Apr-2020,"35,785.60",Hazelbrook Christian Nursing Home
Bolton MBC,Adult Services ,Residential Provision,07-Apr-2020,"56,781.00",Hollands Nursing Home
Bolton MBC,Adult Services ,Nursing Provision,07-Apr-2020,984.07,Laburnum Court Care Home
Bolton MBC,Adult Services ,Nursing Provision,07-Apr-2020,5866.35,Lakeland View Care Centre
Bolton MBC,Adult Services ,Residential Provision,07-Apr-2020,"49,875.00",Lyngate Residential Home#Lyngate Healthcare Ltd
Bolton MBC,Adult Services ,Residential Provision,07-Apr-2020,"8,815.70",Lyngate Residential Home#Lyngate Healthcare Ltd
Bolton MBC,Adult Services ,Residential Provision,07-Apr-2020,"2,833.02",Mary & Joseph House
Bolton MBC,Adult Services ,Residential Provision,07-Apr-2020,"18,870.00",Max Potential UK Limited
Bolton MBC,Adult Services ,Residential Provision,07-Apr-2020,4462.50,Max Potential UK Limited-Glen Avenue
Bolton MBC,Adult Services ,Nursing Provision,07-Apr-2020,"2,943.15",Mewsbrook House
Bolton MBC,Adult Services ,Residential Provision,07-Apr-2020,"33,461.25",Morden Grange
Bolton MBC,Adult Services ,Residential Provision,07-Apr-2020,4750.00,Next Steps Kingscliffe
Bolton MBC,Adult Services ,Residential Provision,07-Apr-2020,18017.95,Next Steps The Elms
Bolton MBC,Adult Services ,Residential Provision,07-Apr-2020,2186.86,Orchard House
Bolton MBC,Adult Services ,Residential Provision,07-Apr-2020,15471.10,Queens Park View#Intelligent Care
Bolton MBC,Adult Services ,Nursing Home Provision,07-Apr-2020,"13,353.71",Randomlight Ltd#Heightside House
Bolton MBC,Adult Services ,Residential Provision,07-Apr-2020,2860.00,Ridgeway Lodge
Bolton MBC,Adult Services ,Nursing Provision,07-Apr-2020,"12,475.00",Rosebridge Court
Bolton MBC,Adult Services ,Contracted Services,02-Apr-2020,995.76,Sanctuary Supported Living
Bolton MBC,Adult Services ,Contracted Services,02-Apr-2020,663.84,Sanctuary Supported Living
Bolton MBC,Adult Services ,Residential Provision,07-Apr-2020,15064.25,Somerset House
Bolton MBC,Adult Services ,Residential Provision,07-Apr-2020,"32,848.51",Southlands Residential Home#Southlands
Bolton MBC,Adult Services ,Nursing Provision,07-Apr-2020,"130,718.60",St Catherines Care Home
Bolton MBC,Adult Services ,Nursing Provision,07-Apr-2020,4034.40,Stocks Hall Care Homes Ltd#St Helens
Bolton MBC,Adult Services ,Residential Provision,07-Apr-2020,2440.25,The Brandles
Bolton MBC,Adult Services ,Residential Provision,07-Apr-2020,6475.00,The Lodge Buckshaw Retirement Village#The Lodge
Bolton MBC,Adult Services ,Residential Provision,07-Apr-2020,"26,885.79",The Old Vicarage
Bolton MBC,Adult Services ,Contracted Services,09-Apr-2020,579.18,Trafalgar Court
Bolton MBC,Adult Services ,Room Hire,02-Apr-2020,675.00,Bolton Quaker Meeting#Society of Friends (Quakers)
Bolton MBC,Adult Services ,Client Support Costs,09-Apr-2020,3330.60,Recovery Support Ltd
Bolton MBC,Adult Services ,Contracted Services,09-Apr-2020,668.75,Autistic Society Greater Manchester Area
Bolton MBC,Adult Services ,Contracted Services,23-Apr-2020,1154.26,Eden Care Support Services Ltd
Bolton MBC,Adult Services ,Contracted Services,23-Apr-2020,925.09,Eden Care Support Services Ltd
Bolton MBC,Adult Services ,Contracted Services,02-Apr-2020,885.52,Eden Care Support Services Ltd
Bolton MBC,Adult Services ,Contracted Services,27-Apr-2020,666.12,Orchid Home Care Support
Bolton MBC,Adult Services ,Contracted Services,20-Apr-2020,1546.75,Recovery Support Ltd
Bolton MBC,Adult Services ,Contracted Services,16-Apr-2020,1339.78,Recovery Support Ltd
Bolton MBC,Adult Services ,Contracted Services,16-Apr-2020,1280.44,Recovery Support Ltd
Bolton MBC,Adult Services ,Contracted Services,16-Apr-2020,1137.70,Recovery Support Ltd
Bolton MBC,Adult Services ,Contracted Services,16-Apr-2020,886.39,Recovery Support Ltd
Bolton MBC,Adult Services ,Contracted Services,16-Apr-2020,778.91,Recovery Support Ltd
Bolton MBC,Adult Services ,Contracted Services,16-Apr-2020,709.57,Recovery Support Ltd
Bolton MBC,Adult Services ,Contracted Services,16-Apr-2020,704.68,Recovery Support Ltd
Bolton MBC,Adult Services ,Contracted Services,20-Apr-2020,641.24,Recovery Support Ltd
Bolton MBC,Adult Services ,Contracted Services,16-Apr-2020,512.91,Recovery Support Ltd
Bolton MBC,Adult Services ,Contracted Services,16-Apr-2020,512.42,Recovery Support Ltd
Bolton MBC,Adult Services ,Contracted Services,09-Apr-2020,5735.85,SureCare Bolton#Sakinas Healthcare Limited
Bolton MBC,Adult Services ,Vol Assoc Grants - General,27-Apr-2020,"26,928.94",Synergy Homecare
Bolton MBC,Adult Services ,Partnership Staff,06-Apr-2020,2286.00,Greater Manchester Mental Health NHS Foundation Trust
Bolton MBC,Adult Services ,Partnership Staff,06-Apr-2020,2100.00,Greater Manchester Mental Health NHS Foundation Trust
Bolton MBC,Adult Services ,Contracted Services,06-Apr-2020,12500.00,Age UK Bolton#was Age Concern
Bolton MBC,Adult Services ,Contracted Services,23-Apr-2020,4750.00,Halliwell Befriending Service
Bolton MBC,Adult Services ,Vol Assoc Grants - General,02-Apr-2020,149052.00,Adullam Housing Association Limited#Homes
Bolton MBC,Adult Services ,Clients Aids & Adaptations,02-Apr-2020,598.12,Anthony Axford Ltd
Bolton MBC,Adult Services ,Clients Aids & Adaptations,09-Apr-2020,2644.00,Bennett Workplace Solutions Limited
Bolton MBC,Adult Services ,Partnership Staff,09-Apr-2020,2122.00,Bolton NHS Foundation Trust#1
Bolton MBC,Adult Services ,Clients Aids & Adaptations,23-Apr-2020,1553.60,Cefndy Healthcare#Cefndy Enterprises
Bolton MBC,Adult Services ,Clients Aids & Adaptations,23-Apr-2020,6488.64,Creative Care (Todmorden) Limited
Bolton MBC,Adult Services ,Clients Aids & Adaptations,16-Apr-2020,5868.27,Creative Care (Todmorden) Limited
Bolton MBC,Adult Services ,Clients Aids & Adaptations,16-Apr-2020,5491.64,Creative Care (Todmorden) Limited
Bolton MBC,Adult Services ,Clients Aids & Adaptations,30-Apr-2020,1356.00,Drive Devilbiss Healthcare Limited
Bolton MBC,Adult Services ,Clients Aids & Adaptations,02-Apr-2020,582.00,Drive Devilbiss Healthcare Limited
Bolton MBC,Adult Services ,Clients Aids & Adaptations,09-Apr-2020,1275.00,Drive DeVilbiss Sidhil Limited
Bolton MBC,Adult Services ,Clients Aids & Adaptations,06-Apr-2020,3478.00,Frontier Therapeutics
Bolton MBC,Adult Services ,Clients Aids & Adaptations,09-Apr-2020,626.00,G & S Smirthwaite Ltd#Smirthwaite Ltd
Bolton MBC,Adult Services ,Clients Aids & Adaptations,06-Apr-2020,588.00,G & S Smirthwaite Ltd#Smirthwaite Ltd
Bolton MBC,Adult Services ,Clients Aids & Adaptations,23-Apr-2020,512.00,G & S Smirthwaite Ltd#Smirthwaite Ltd
Bolton MBC,Adult Services ,Clients Aids & Adaptations,06-Apr-2020,1033.50,Harvest Healthcare Limited
Bolton MBC,Adult Services ,Clients Aids & Adaptations,09-Apr-2020,1756.00,Helping Hand Co (Ledbury) Ltd
Bolton MBC,Adult Services ,Clients Aids & Adaptations,06-Apr-2020,553.18,James Gibson (Darwen) Limited
Bolton MBC,Adult Services ,Clients Aids & Adaptations,09-Apr-2020,966.00,Jenx Limited#Jiraffe
Bolton MBC,Adult Services ,Clients Aids & Adaptations,16-Apr-2020,520.00,Jenx Limited#Jiraffe
Bolton MBC,Adult Services ,Clients Aids & Adaptations,27-Apr-2020,2015.00,Medstrom Limited
Bolton MBC,Adult Services ,Clients Aids & Adaptations,27-Apr-2020,620.00,Medstrom Limited
Bolton MBC,Adult Services ,Clients Aids & Adaptations,02-Apr-2020,800.00,Newlyn Healthcare Specialist Equipment Ltd
Bolton MBC,Adult Services ,Clients Aids & Adaptations,02-Apr-2020,3579.73,Prism Medical UK
Bolton MBC,Adult Services ,Clients Aids & Adaptations,02-Apr-2020,1955.12,Prism Medical UK
Bolton MBC,Adult Services ,Clients Aids & Adaptations,30-Apr-2020,1032.95,Prism Medical UK
Bolton MBC,Adult Services ,Clients Aids & Adaptations,20-Apr-2020,1025.25,Prism Medical UK
Bolton MBC,Adult Services ,Clients Aids & Adaptations,30-Apr-2020,787.91,Prism Medical UK
Bolton MBC,Adult Services ,Clients Aids & Adaptations,27-Apr-2020,711.88,Prism Medical UK
Bolton MBC,Adult Services ,Clients Aids & Adaptations,06-Apr-2020,700.00,Prism Medical UK
Bolton MBC,Adult Services ,Clients Aids & Adaptations,30-Apr-2020,530.18,Prism Medical UK
Bolton MBC,Adult Services ,Clients Aids & Adaptations,02-Apr-2020,4179.00,R82 UK Ltd
Bolton MBC,Adult Services ,Clients Aids & Adaptations,20-Apr-2020,4179.00,R82 UK Ltd
Bolton MBC,Adult Services ,Clients Aids & Adaptations,20-Apr-2020,1198.00,R82 UK Ltd
Bolton MBC,Adult Services ,Clients Aids & Adaptations,09-Apr-2020,750.00,R82 UK Ltd
Bolton MBC,Adult Services ,Clients Aids & Adaptations,23-Apr-2020,551.00,R82 UK Ltd
Bolton MBC,Adult Services ,Clients Aids & Adaptations,20-Apr-2020,3857.81,Sarabec Limited
Bolton MBC,Adult Services ,Clients Aids & Adaptations,02-Apr-2020,2600.00,Select Medical Limited
Bolton MBC,Adult Services ,Clients Aids & Adaptations,30-Apr-2020,2140.00,Select Medical Limited
Bolton MBC,Adult Services ,Clients Aids & Adaptations,30-Apr-2020,2140.00,Select Medical Limited
Bolton MBC,Adult Services ,Clients Aids & Adaptations,30-Apr-2020,1605.00,Select Medical Limited
Bolton MBC,Adult Services ,Clients Aids & Adaptations,23-Apr-2020,1300.00,Select Medical Limited
Bolton MBC,Adult Services ,Clients Aids & Adaptations,23-Apr-2020,675.00,Select Medical Limited
Bolton MBC,Adult Services ,Clients Aids & Adaptations,30-Apr-2020,1469.15,Smitcare Limited
Bolton MBC,Adult Services ,Clients Aids & Adaptations,16-Apr-2020,1863.00,Sunrise Medical Limited
Bolton MBC,Adult Services ,Clients Aids & Adaptations,02-Apr-2020,619.00,Sunrise Medical Limited
Bolton MBC,Adult Services ,Clients Aids & Adaptations,09-Apr-2020,2326.80,The Key Safe Company#Supra UK Ltd
Bolton MBC,Adult Services ,Clients Aids & Adaptations,02-Apr-2020,904.64,Tom Gallagher Limited
Bolton MBC,Adult Services ,Clients Aids & Adaptations,02-Apr-2020,621.77,Tom Gallagher Limited
Bolton MBC,Adult Services ,Clients Aids & Adaptations,02-Apr-2020,570.40,Tom Gallagher Limited
Bolton MBC,Adult Services ,Clients Aids & Adaptations,02-Apr-2020,532.21,Tom Gallagher Limited
Bolton MBC,Adult Services ,Clients Aids & Adaptations,09-Apr-2020,2340.00,Buddi Ltd
Bolton MBC,Adult Services ,Clients Aids & Adaptations,02-Apr-2020,1909.50,Chubb Fire & Security Limited#Community Care
Bolton MBC,Adult Services ,Clients Aids & Adaptations,02-Apr-2020,3055.85,Easylink UK#Medpage Limited
Bolton MBC,Adult Services ,Clients Aids & Adaptations,09-Apr-2020,722.50,Easylink UK#Medpage Limited
Bolton MBC,Adult Services ,Clients Aids & Adaptations,02-Apr-2020,7024.00,Tunstall Healthcare (UK) Limited
Bolton MBC,Adult Services ,Staff Hotel Expenses,30-Apr-2020,633.33,Click Travel Limited
Bolton MBC,Adult Services ,Client Support Costs,30-Apr-2020,"2,288.00",Common Fold Boarding Kennels
Bolton MBC,Adult Services ,Legal Fees,06-Apr-2020,600.00,Exchange Chambers
Bolton MBC,Adult Services ,Other Fees,27-Apr-2020,730.00,HMCTS#Her Majestys Courts And Tribunals Service
Bolton MBC,Adult Services ,Other Fees,02-Apr-2020,746.70,REDACTED - Personal Data
Bolton MBC,Adult Services ,Contracted Services,09-Apr-2020,1018.00,Dagmar Hartshorn Psychological Services
Bolton MBC,Adult Services ,Operational Equipment Purchase,23-Apr-2020,6330.00,Silk Group Limited
Bolton MBC,Adult Services ,Operational Equipment Purchase,02-Apr-2020,3375.00,SWG (Europe) Ltd
Bolton MBC,Adult Services ,Partnerships - Other,23-Apr-2020,75000.00,Bolton NHS Foundation Trust#1
Bolton MBC,Adult Services ,Partnerships - Other,30-Apr-2020,54951.00,Bolton NHS Foundation Trust#1
Bolton MBC,Adult Services ,Partnerships - Other,30-Apr-2020,29579.00,Bolton NHS Foundation Trust#1
Bolton MBC,Adult Services ,Other Agency/Contracted Services,23-Apr-2020,5270.58,Shannon Court Care Home Limited
Bolton MBC,Adult Services ,Cleaning Materials,02-Apr-2020,766.22,Care Corner Limited
Bolton MBC,Adult Services ,Cleaning Materials,09-Apr-2020,765.20,Care Corner Limited
Bolton MBC,Adult Services ,Cleaning Materials,30-Apr-2020,653.33,Care Corner Limited
Bolton MBC,Adult Services ,Information and Communication Technology,20-Apr-2020,3197.42,CM2000 Care Management#HAS Technology Limited
Bolton MBC,Children Services,Deep Cleans - One Offs,09-Apr-2020,1500.00,Premier Compliance UK Ltd
Bolton MBC,Children Services,Day To Day Maintenance,16-Apr-2020,561.05,Robertson Facilities Management Limited
Bolton MBC,Children Services,Agency Staff - Other,09-Apr-2020,659.70,Randstad Public Services Limited
Bolton MBC,Children Services,Agency Staff - Other,02-Apr-2020,650.90,Randstad Public Services Limited
Bolton MBC,Children Services,Agency Staff - Other,06-Apr-2020,648.71,Randstad Public Services Limited
Bolton MBC,Children Services,Agency Staff - Other,20-Apr-2020,648.71,Randstad Public Services Limited
Bolton MBC,Children Services,Agency Staff - Other,30-Apr-2020,648.71,Randstad Public Services Limited
Bolton MBC,Children Services,Agency Staff - Other,23-Apr-2020,648.71,Randstad Public Services Limited
Bolton MBC,Children Services, Computer Software Licences,23-Apr-2020,1188.00,Famly Aps
Bolton MBC,Children Services,Marketing,02-Apr-2020,1100.00,AB Memorials#absigns
Bolton MBC,Children Services,Office Stationery,02-Apr-2020,2813.00,Silk Group Limited
Bolton MBC,Children Services,Cleaning Materials,23-Apr-2020,619.15,Arrow County Supplies Limited
Bolton MBC,Children Services,Agency Staff - Full-time,27-Apr-2020,675.00,Axcis Education Recruitment
Bolton MBC,Children Services,Agency Staff - Full-time,27-Apr-2020,675.00,Axcis Education Recruitment
Bolton MBC,Children Services,Agency Staff - Full-time,27-Apr-2020,675.00,Axcis Education Recruitment
Bolton MBC,Children Services,Agency Staff - Full-time,30-Apr-2020,540.00,Axcis Education Recruitment
Bolton MBC,Children Services,Operational Equipment Purchase,06-Apr-2020,810.00,Impression (Bolton) Limited#1
Bolton MBC,Children Services,Training Exp - Ext Seminars,09-Apr-2020,1700.00,The Aim Project
Bolton MBC,Children Services,Text Books,09-Apr-2020,1010.00,The Aim Project
Bolton MBC,Children Services,Garden Maintenance,23-Apr-2020,960.00,Woodlands Landscapes#2
Bolton MBC,Children Services,Garden Maintenance,23-Apr-2020,960.00,Woodlands Landscapes#2
Bolton MBC,Children Services,Contracted Services,16-Apr-2020,1145.00,bikewithemma
Bolton MBC,Children Services,Contracted Services,16-Apr-2020,8150.00,Key PE Sports
Bolton MBC,Children Services,Contracted Services,16-Apr-2020,2145.00,REDACTED - Personal Data
Bolton MBC,Children Services,Contracted Services,16-Apr-2020,1285.00,REDACTED - Personal Data
Bolton MBC,Children Services,Contracted Services,16-Apr-2020,1335.00,Town Sports
Bolton MBC,Children Services,Vol Assoc Grants - General,14-Apr-2020,885.00,Access to Care Limited
Bolton MBC,Children Services,Vol Assoc Grants - General,14-Apr-2020,885.00,Access to Care Limited
Bolton MBC,Children Services,Vol Assoc Grants - General,14-Apr-2020,885.00,Access to Care Limited
Bolton MBC,Children Services,Vol Assoc Grants - General,27-Apr-2020,15642.86,Area Camden Limited
Bolton MBC,Children Services,Contracted Services,20-Apr-2020,3201.00,Barnardo's
Bolton MBC,Children Services,Contracted Services,20-Apr-2020,3135.00,Barnardo's
Bolton MBC,Children Services,Vol Assoc Grants - General,06-Apr-2020,3461.34,Birtenshaw
Bolton MBC,Children Services,Vol Assoc Grants - General,06-Apr-2020,1590.00,Birtenshaw
Bolton MBC,Children Services,Vol Assoc Grants - General,09-Apr-2020,3342.69,Compass Fostering North Limited
Bolton MBC,Children Services,Vol Assoc Grants - General,09-Apr-2020,3171.30,Compass Fostering North Limited
Bolton MBC,Children Services,Vol Assoc Grants - General,06-Apr-2020,3467.10,Family Care Fostering Limited
Bolton MBC,Children Services,Vol Assoc Grants - General,27-Apr-2020,5973.60,Foster Care Associates Limited
Bolton MBC,Children Services,Vol Assoc Grants - General,27-Apr-2020,4269.00,Foster Care Associates Limited
Bolton MBC,Children Services,Vol Assoc Grants - General,23-Apr-2020,3477.57,Foster Care Associates Limited
Bolton MBC,Children Services,Vol Assoc Grants - General,27-Apr-2020,3450.90,Foster Care Associates Limited
Bolton MBC,Children Services,Vol Assoc Grants - General,27-Apr-2020,3450.90,Foster Care Associates Limited
Bolton MBC,Children Services,Vol Assoc Grants - General,23-Apr-2020,3278.35,Foster Care Associates Limited
Bolton MBC,Children Services,Vol Assoc Grants - General,27-Apr-2020,3192.90,Foster Care Associates Limited
Bolton MBC,Children Services,Vol Assoc Grants - General,27-Apr-2020,2935.50,Foster Care Associates Limited
Bolton MBC,Children Services,Vol Assoc Grants - General,27-Apr-2020,3546.77,Fostering People Limited
Bolton MBC,Children Services,Vol Assoc Grants - General,27-Apr-2020,3546.77,Fostering People Limited
Bolton MBC,Children Services,Vol Assoc Grants - General,27-Apr-2020,3263.40,Fostering People Limited
Bolton MBC,Children Services,Vol Assoc Grants - General,27-Apr-2020,3176.70,Fostering People Limited
Bolton MBC,Children Services,Vol Assoc Grants - General,14-Apr-2020,5142.26,Fostering Solutions Ltd#2
Bolton MBC,Children Services,Vol Assoc Grants - General,14-Apr-2020,3557.10,Fostering Solutions Ltd#2
Bolton MBC,Children Services,Vol Assoc Grants - General,14-Apr-2020,3557.10,Fostering Solutions Ltd#2
Bolton MBC,Children Services,Vol Assoc Grants - General,14-Apr-2020,3492.90,Fostering Solutions Ltd#2
Bolton MBC,Children Services,Vol Assoc Grants - General,14-Apr-2020,3450.30,Fostering Solutions Ltd#2
Bolton MBC,Children Services,Vol Assoc Grants - General,14-Apr-2020,2829.76,Fostering Solutions Ltd#2
Bolton MBC,Children Services,Vol Assoc Grants - General,14-Apr-2020,1935.11,Fostering Solutions Ltd#2
Bolton MBC,Children Services,Vol Assoc Grants - General,14-Apr-2020,1900.09,Fostering Solutions Ltd#2
Bolton MBC,Children Services,Vol Assoc Grants - General,14-Apr-2020,1782.63,Fostering Solutions Ltd#2
Bolton MBC,Children Services,Vol Assoc Grants - General,14-Apr-2020,1782.63,Fostering Solutions Ltd#2
Bolton MBC,Children Services,Vol Assoc Grants - General,14-Apr-2020,1687.93,Fostering Solutions Ltd#2
Bolton MBC,Children Services,Vol Assoc Grants - General,14-Apr-2020,1405.80,Fostering Solutions Ltd#2
Bolton MBC,Children Services,Vol Assoc Grants - General,14-Apr-2020,1380.36,Fostering Solutions Ltd#2
Bolton MBC,Children Services,Vol Assoc Grants - General,14-Apr-2020,1226.23,Fostering Solutions Ltd#2
Bolton MBC,Children Services,Vol Assoc Grants - General,14-Apr-2020,1059.94,Fostering Solutions Ltd#2
Bolton MBC,Children Services,Vol Assoc Grants - General,14-Apr-2020,1059.94,Fostering Solutions Ltd#2
Bolton MBC,Children Services,Vol Assoc Grants - General,06-Apr-2020,3603.21,Fusion Fostering Limited
Bolton MBC,Children Services,Vol Assoc Grants - General,20-Apr-2020,12300.00,Holistic Approach Limited
Bolton MBC,Children Services,Vol Assoc Grants - General,20-Apr-2020,12300.00,Holistic Approach Limited
Bolton MBC,Children Services,Vol Assoc Grants - General,20-Apr-2020,12300.00,Holistic Approach Limited
Bolton MBC,Children Services,Vol Assoc Grants - General,20-Apr-2020,12300.00,Holistic Approach Limited
Bolton MBC,Children Services,Vol Assoc Grants - General,20-Apr-2020,11550.00,Holistic Approach Limited
Bolton MBC,Children Services,Contracted Services,20-Apr-2020,12300.00,Holistic Approach Limited
Bolton MBC,Children Services,Contracted Services,20-Apr-2020,12300.00,Holistic Approach Limited
Bolton MBC,Children Services,Contracted Services,20-Apr-2020,12300.00,Holistic Approach Limited
Bolton MBC,Children Services,Contracted Services,20-Apr-2020,5092.00,Inspire Community Services Limited
Bolton MBC,Children Services,Vol Assoc Grants - General,06-Apr-2020,15214.29,Keys PCE Limited#Keys Group
Bolton MBC,Children Services,Vol Assoc Grants - General,27-Apr-2020,8202.00,Meadows Care Limited
Bolton MBC,Children Services,Contracted Services,20-Apr-2020,585.71,Meadows Care Limited
Bolton MBC,Children Services,Vol Assoc Grants - General,06-Apr-2020,20271.00,National Offender Management Service
Bolton MBC,Children Services,Vol Assoc Grants - General,06-Apr-2020,6960.00,National Offender Management Service
Bolton MBC,Children Services,Vol Assoc Grants - General,06-Apr-2020,2160.00,National Offender Management Service
Bolton MBC,Children Services,Vol Assoc Grants - General,20-Apr-2020,960.00,National Offender Management Service
Bolton MBC,Children Services,Contracted Services,20-Apr-2020,16776.00,National Offender Management Service
Bolton MBC,Children Services,Vol Assoc Grants - General,27-Apr-2020,15942.99,New Horizons NW Limited
Bolton MBC,Children Services,Vol Assoc Grants - General,27-Apr-2020,15942.99,New Horizons NW Limited
Bolton MBC,Children Services,Vol Assoc Grants - General,27-Apr-2020,15428.70,New Horizons NW Limited
Bolton MBC,Children Services,Vol Assoc Grants - General,27-Apr-2020,15428.70,New Horizons NW Limited
Bolton MBC,Children Services,Vol Assoc Grants - General,16-Apr-2020,4805.00,"Next Stage ""A Way Forward"" Youth Development Limited"
Bolton MBC,Children Services,Vol Assoc Grants - General,06-Apr-2020,23025.00,Next Stage 4 Life Limited
Bolton MBC,Children Services,Vol Assoc Grants - General,06-Apr-2020,"19,714.20",Next Stage 4 Life Limited
Bolton MBC,Children Services,Vol Assoc Grants - General,06-Apr-2020,19714.20,Next Stage 4 Life Limited
Bolton MBC,Children Services,Vol Assoc Grants - General,06-Apr-2020,1147.80,Olive Branch Fostering Limited
Bolton MBC,Children Services,Vol Assoc Grants - General,09-Apr-2020,3818.70,Orange Grove Foster Care Limited
Bolton MBC,Children Services,Vol Assoc Grants - General,09-Apr-2020,3627.76,Orange Grove Foster Care Limited
Bolton MBC,Children Services,Vol Assoc Grants - General,23-Apr-2020,4927.80,People Who Foster Limited
Bolton MBC,Children Services,Vol Assoc Grants - General,14-Apr-2020,41490.00,Peterborough City Council
Bolton MBC,Children Services,Vol Assoc Grants - General,23-Apr-2020,18214.29,Sandcastle Care Limited
Bolton MBC,Children Services,Vol Assoc Grants - General,27-Apr-2020,1017.95,Swiis Foster Care Limited
Bolton MBC,Children Services,Vol Assoc Grants - General,16-Apr-2020,1013.60,Swiis Foster Care Limited
Bolton MBC,Children Services,Vol Assoc Grants - General,16-Apr-2020,993.60,Swiis Foster Care Limited
Bolton MBC,Children Services,Vol Assoc Grants - General,16-Apr-2020,993.60,Swiis Foster Care Limited
Bolton MBC,Children Services,Vol Assoc Grants - General,27-Apr-2020,741.02,Swiis Foster Care Limited
Bolton MBC,Children Services,Vol Assoc Grants - General,27-Apr-2020,695.52,Swiis Foster Care Limited
Bolton MBC,Children Services,Vol Assoc Grants - General,27-Apr-2020,695.52,Swiis Foster Care Limited
Bolton MBC,Children Services,Vol Assoc Grants - General,16-Apr-2020,529.30,Swiis Foster Care Limited
Bolton MBC,Children Services,Vol Assoc Grants - General,06-Apr-2020,17670.00,The Together Trust
Bolton MBC,Children Services,Vol Assoc Grants - General,06-Apr-2020,3814.50,Therapeutic Fostering Limited
Bolton MBC,Children Services,Vol Assoc Grants - General,06-Apr-2020,3636.60,Therapeutic Fostering Limited
Bolton MBC,Children Services,Vol Assoc Grants - General,06-Apr-2020,3400.80,Therapeutic Fostering Limited
Bolton MBC,Children Services,Vol Assoc Grants - General,06-Apr-2020,3392.10,Therapeutic Fostering Limited
Bolton MBC,Children Services,Contracted Services,20-Apr-2020,19071.43,Transitional Plus Care CIC Limited
Bolton MBC,Children Services,Contracted Services,20-Apr-2020,4917.86,Transitional Plus Care CIC Limited
Bolton MBC,Children Services,Vol Assoc Grants - General,14-Apr-2020,1500.00,Triangle Care Limited
Bolton MBC,Children Services,Vol Assoc Grants - General,20-Apr-2020,675.00,Triangle Care Limited
Bolton MBC,Children Services,Vol Assoc Grants - General,06-Apr-2020,34414.29,Young Foundations Limited
Bolton MBC,Children Services,Operational Equipment Purchase,23-Apr-2020,4290.00,Bolton Carpet Services Ltd
Bolton MBC,Children Services,Operational Equipment Purchase,30-Apr-2020,523.40,Electrical & Plumbing Contractor
Bolton MBC,Children Services,Operational Equipment Purchase,23-Apr-2020,1275.00,REDACTED - Personal Data
Bolton MBC,Children Services,Operational Equipment Purchase,27-Apr-2020,3800.00,S&S Decorators
Bolton MBC,Children Services,Inter Agency Fees,23-Apr-2020,31620.00,Adopters for Adoption
Bolton MBC,Children Services,Inter Agency Fees,09-Apr-2020,2214.29,Caritas Care Ltd
Bolton MBC,Children Services,Inter Agency Fees,09-Apr-2020,2142.86,Caritas Care Ltd
Bolton MBC,Children Services,Inter Agency Fees,09-Apr-2020,1428.60,Caritas Care Ltd
Bolton MBC,Children Services,Client Support Costs,20-Apr-2020,579.75,REDACTED - Personal Data
Bolton MBC,Children Services,Family Placement (Daycare),20-Apr-2020,1880.00,REDACTED - Personal Data
Bolton MBC,Children Services,Family Placement (Daycare),06-Apr-2020,1590.00,REDACTED - Personal Data
Bolton MBC,Children Services,Family Placement (Daycare),06-Apr-2020,1525.00,REDACTED - Personal Data
Bolton MBC,Children Services,Family Placement (Daycare),06-Apr-2020,1525.00,REDACTED - Personal Data
Bolton MBC,Children Services,Family Placement (Daycare),27-Apr-2020,"1,271.95",REDACTED - Personal Data
Bolton MBC,Children Services,Family Placement (Daycare),06-Apr-2020,1032.55,REDACTED - Personal Data
Bolton MBC,Children Services,Family Placement (Daycare),06-Apr-2020,775.00,REDACTED - Personal Data
Bolton MBC,Children Services,Family Placement (Daycare),06-Apr-2020,775.00,REDACTED - Personal Data
Bolton MBC,Children Services,Family Placement (Daycare),06-Apr-2020,775.00,REDACTED - Personal Data
Bolton MBC,Children Services,Family Placement (Daycare),06-Apr-2020,775.00,REDACTED - Personal Data
Bolton MBC,Children Services,Family Placement (Daycare),06-Apr-2020,775.00,REDACTED - Personal Data
Bolton MBC,Children Services,Other Fees,02-Apr-2020,11637.00,Bolton NHS Foundation Trust#1
Bolton MBC,Children Services,Clients - Bus Fares,02-Apr-2020,1615.00,Diamond Bus North West Limited
Bolton MBC,Children Services,Clients - Bus Fares,06-Apr-2020,808.00,Diamond Bus North West Limited
Bolton MBC,Children Services,Other Clients Services,06-Apr-2020,2406.55,Backup North West#BYPHS
Bolton MBC,Children Services,Other Clients Services,06-Apr-2020,2213.20,Backup North West#BYPHS
Bolton MBC,Children Services,Other Agency/Contracted Services,23-Apr-2020,1520.00,JR Business Associates Limited#JR Assessments
Bolton MBC,Children Services,Other Fees,23-Apr-2020,1320.00,Lynx Learning Ltd
Bolton MBC,Children Services,Other Fees,23-Apr-2020,600.00,Prospero Teaching
Bolton MBC,Children Services,Other Fees,23-Apr-2020,600.00,Prospero Teaching
Bolton MBC,Children Services,Other Fees,27-Apr-2020,3000.00,Trafford MBC#Trafford Borough Council
Bolton MBC,Children Services,Records Storage,06-Apr-2020,965.79,Dataspace
Bolton MBC,Children Services,Clients Medical Requisites,02-Apr-2020,624.00,Gompels Healthcare Ltd
Bolton MBC,Children Services,Legal Fees,20-Apr-2020,4065.00,18 St John Street Chambers
Bolton MBC,Children Services,Legal Fees,02-Apr-2020,950.00,18 St John Street Chambers
Bolton MBC,Children Services,Legal Fees,09-Apr-2020,950.00,18 St John Street Chambers
Bolton MBC,Children Services,Legal Fees,02-Apr-2020,650.00,18 St John Street Chambers
Bolton MBC,Children Services,Other Fees,20-Apr-2020,1600.00,18 St John Street Chambers
Bolton MBC,Children Services,Other Fees,02-Apr-2020,561.32,AVR Transcription Limited
Bolton MBC,Children Services,Other Fees,20-Apr-2020,1558.40,Forensic Testing Service Ltd
Bolton MBC,Children Services,Other Fees,09-Apr-2020,1067.00,Forensic Testing Service Ltd
Bolton MBC,Children Services,Other Fees,20-Apr-2020,1023.80,Forensic Testing Service Ltd
Bolton MBC,Children Services,Legal Fees,30-Apr-2020,2750.00,Garden Court Chambers
Bolton MBC,Children Services,Other Fees,15-Apr-2020,4470.00,HMCTS#Her Majestys Courts And Tribunals Service
Bolton MBC,Children Services,Other Fees,30-Apr-2020,2585.00,HMCTS#Her Majestys Courts And Tribunals Service
Bolton MBC,Children Services,Other Fees,27-Apr-2020,2270.00,HMCTS#Her Majestys Courts And Tribunals Service
Bolton MBC,Children Services,Other Fees,06-Apr-2020,1350.00,HMCTS#Her Majestys Courts And Tribunals Service
Bolton MBC,Children Services,Legal Fees,09-Apr-2020,900.00,KBW Barristers Chambers
Bolton MBC,Children Services,Legal Fees,30-Apr-2020,550.00,Kenworthys Chambers
Bolton MBC,Children Services,Other Fees,06-Apr-2020,750.00,Kerseys Solicitors LLP
Bolton MBC,Children Services,Other Fees,09-Apr-2020,700.00,REDACTED - Personal Data
Bolton MBC,Children Services,Other Fees,06-Apr-2020,566.00,REDACTED - Personal Data
Bolton MBC,Children Services,Other Fees,20-Apr-2020,500.00,Ridley & Hall Legal Limited
Bolton MBC,Children Services,Legal Fees,30-Apr-2020,2062.50,St Johns Buildings Chambers
Bolton MBC,Children Services,Legal Fees,30-Apr-2020,850.00,St Johns Buildings Chambers
Bolton MBC,Children Services,Legal Fees,20-Apr-2020,625.00,St Johns Buildings Chambers
Bolton MBC,Children Services,Legal Fees,09-Apr-2020,600.00,St Johns Buildings Chambers
Bolton MBC,Children Services,Legal Fees,27-Apr-2020,500.00,St Johns Buildings Chambers
Bolton MBC,Children Services,Other Fees,09-Apr-2020,600.00,St Johns Buildings Chambers
Bolton MBC,Children Services,Other Fees,09-Apr-2020,2384.10,Fostering Network
Bolton MBC,Children Services,Training Exps Tuition Fees,02-Apr-2020,500.00,Mental Health Learning
Bolton MBC,Children Services,Other Fees,09-Apr-2020,950.00,Survivors Manchester
Bolton MBC,Children Services,Other Fees,30-Apr-2020,750.00,Caritas Care Ltd
Bolton MBC,Children Services,Other Fees,02-Apr-2020,3902.59,Cornerstone Training And Support Limited
Bolton MBC,Children Services,Marketing,02-Apr-2020,1509.00,Global Radio Services Ltd
Bolton MBC,Children Services,Marketing,02-Apr-2020,1509.00,Global Radio Services Ltd
Bolton MBC,Children Services,Legal Fees,06-Apr-2020,1509.00,Global Radio Services Ltd
Bolton MBC,Children Services,Other Fees,20-Apr-2020,36331.20,Link Maker Systems Limited
Bolton MBC,Children Services,Marketing,02-Apr-2020,1526.99,Statuo Limited
Bolton MBC,Children Services,Marketing,23-Apr-2020,1526.99,Statuo Limited
Bolton MBC,Children Services,Other Fees,20-Apr-2020,3150.00,Blackpool Borough Council
Bolton MBC,Children Services,Marketing,02-Apr-2020,20000.00,Georgeco Marketing Services LLP#George And Co
Bolton MBC,Children Services,Other Fees,02-Apr-2020,595.00,Adoption Matters
Bolton MBC,Children Services,Other Fees,02-Apr-2020,3260.00,BAPT
Bolton MBC,Children Services,Other Fees,02-Apr-2020,3025.00,Beyond Psychology Co Operative Ltd
Bolton MBC,Children Services,Other Fees,09-Apr-2020,573.00,Child & Adolescent Therapy Services
Bolton MBC,Children Services,Other Fees,02-Apr-2020,857.50,Engaging Therapy UK
Bolton MBC,Children Services,Other Fees,02-Apr-2020,784.00,Engaging Therapy UK
Bolton MBC,Children Services,Other Fees,30-Apr-2020,793.52,REDACTED - Personal Data
Bolton MBC,Children Services,Other Fees,30-Apr-2020,660.00,Integrate Families
Bolton MBC,Children Services,Other Fees,30-Apr-2020,660.00,Integrate Families
Bolton MBC,Children Services,Other Fees,02-Apr-2020,1040.00,IntraQuest Limited#Intraquest Community CIC
Bolton MBC,Children Services,Other Fees,30-Apr-2020,520.00,IntraQuest Limited#Intraquest Community CIC
Bolton MBC,Children Services,Other Fees,23-Apr-2020,1028.00,REDACTED - Personal Data
Bolton MBC,Children Services,Other Fees,23-Apr-2020,602.50,REDACTED - Personal Data
Bolton MBC,Children Services,Other Fees,23-Apr-2020,1000.00,Taafa CIC
Bolton MBC,Children Services,Other Fees,02-Apr-2020,875.00,Taafa CIC
Bolton MBC,Children Services,Other Fees,23-Apr-2020,2835.00,Tiptoes Child Therapy Services ( Ltd)
Bolton MBC,Children Services,Other Fees,02-Apr-2020,2500.00,Tiptoes Child Therapy Services ( Ltd)
Bolton MBC,Children Services,Other Fees,20-Apr-2020,2380.00,Tiptoes Child Therapy Services ( Ltd)
Bolton MBC,Children Services,Other Fees,23-Apr-2020,2260.00,Tiptoes Child Therapy Services ( Ltd)
Bolton MBC,Children Services,Other Fees,23-Apr-2020,2222.50,Tiptoes Child Therapy Services ( Ltd)
Bolton MBC,Children Services,Other Fees,23-Apr-2020,2125.00,Tiptoes Child Therapy Services ( Ltd)
Bolton MBC,Children Services,Other Fees,20-Apr-2020,1520.00,Tiptoes Child Therapy Services ( Ltd)
Bolton MBC,Children Services,Other Fees,20-Apr-2020,1100.00,Tiptoes Child Therapy Services ( Ltd)
Bolton MBC,Children Services,Other Fees,20-Apr-2020,700.00,Tiptoes Child Therapy Services ( Ltd)
Bolton MBC,Children Services,Other Fees,23-Apr-2020,640.50,Tiptoes Child Therapy Services ( Ltd)
Bolton MBC,Children Services,Agency Staff - Other,09-Apr-2020,21307.50,Propelo Limited
Bolton MBC,Children Services,Training Exp - In House,06-Apr-2020,4585.20,Send4Change Ltd
Bolton MBC,Children Services,Postage Charge,30-Apr-2020,809.90,Royal Mail Group Limited
Bolton MBC,Children Services,Operational Equipment Purchase,16-Apr-2020,13549.77,Agilisys Limited
Bolton MBC,Children Services,Computer Purchase,02-Apr-2020,1191.40,CCS Media Ltd
Bolton MBC,Children Services,Private Contracted Services,20-Apr-2020,700.00,Gateway Outsource Solutions Limited
Bolton MBC,Children Services,Private Contracted Services,30-Apr-2020,700.00,Gateway Outsource Solutions Limited
Bolton MBC,Children Services,Private Contracted Services,20-Apr-2020,560.00,Gateway Outsource Solutions Limited
Bolton MBC,Children Services,Computer Purchase,09-Apr-2020,15705.00,Stone Computers Limited
Bolton MBC,Children Services,Computer Purchase,16-Apr-2020,9750.00,Stone Computers Limited
Bolton MBC,Children Services,Computer Purchase,02-Apr-2020,7852.50,Stone Computers Limited
Bolton MBC,Children Services,Operational Equipment Purchase,20-Apr-2020,20554.75,Virgin Media Payments Limited#Virgin Media Business
Bolton MBC,Children Services,Operational Equipment Purchase,30-Apr-2020,9466.56,Virgin Media Payments Limited#Virgin Media Business
Bolton MBC,Children Services,Operational Equipment Purchase,30-Apr-2020,5059.75,Virgin Media Payments Limited#Virgin Media Business
Bolton MBC,Children Services,Operational Equipment Maint,23-Apr-2020,128500.00,WCL UK Ltd (Everything ICT)
Bolton MBC,Children Services,Operational Equipment Maint,27-Apr-2020,7500.00,WCL UK Ltd (Everything ICT)
Bolton MBC,Children Services,Private Contracted Services,27-Apr-2020,14505.00,WCL UK Ltd (Everything ICT)
Bolton MBC,Children Services, Computer Software Licences,30-Apr-2020,11142.01,NCER CIC
Bolton MBC,Children Services,Vol Assoc Grants - General,27-Apr-2020,7201.25,Fortalice Limited#Bolton Womens Aid
Bolton MBC,Children Services,Contracted Services,23-Apr-2020,5000.00,Fortalice Limited#Bolton Womens Aid
Bolton MBC,Children Services,Contracted Services,16-Apr-2020,2500.00,Harmony Youth Project
Bolton MBC,Children Services,Contracted Services,23-Apr-2020,6250.00,The Sycamore Project#Zacs Bar
Bolton MBC,Children Services,Marketing,06-Apr-2020,1051.00,NB Colour Print Limited
Bolton MBC,Children Services,Other Clients Services,02-Apr-2020,2043.01,Click Travel Limited
Bolton MBC,Children Services,Other Clients Services,14-Apr-2020,870.75,Click Travel Limited
Bolton MBC,Children Services,Agency Staff - Other,02-Apr-2020,1950.00,Ackerman Pierce Limited
Bolton MBC,Children Services,Agency Staff - Other,02-Apr-2020,1950.00,Ackerman Pierce Limited
Bolton MBC,Children Services,Agency Staff - Other,02-Apr-2020,1950.00,Ackerman Pierce Limited
Bolton MBC,Children Services,Agency Staff - Other,02-Apr-2020,1950.00,Ackerman Pierce Limited
Bolton MBC,Children Services,Agency Staff - Other,02-Apr-2020,1950.00,Ackerman Pierce Limited
Bolton MBC,Children Services,Agency Staff - Other,02-Apr-2020,1950.00,Ackerman Pierce Limited
Bolton MBC,Children Services,Agency Staff - Other,02-Apr-2020,1950.00,Ackerman Pierce Limited
Bolton MBC,Children Services,Agency Staff - Other,02-Apr-2020,1950.00,Ackerman Pierce Limited
Bolton MBC,Children Services,Agency Staff - Other,20-Apr-2020,1950.00,Ackerman Pierce Limited
Bolton MBC,Children Services,Agency Staff - Other,20-Apr-2020,1950.00,Ackerman Pierce Limited
Bolton MBC,Children Services,Agency Staff - Other,30-Apr-2020,1560.00,Ackerman Pierce Limited
Bolton MBC,Children Services,Agency Staff - Other,30-Apr-2020,1560.00,Ackerman Pierce Limited
Bolton MBC,Children Services,Agency Staff - Other,02-Apr-2020,2919.05,IPeople Solutions Limited T/A Action First
Bolton MBC,Children Services,Agency Staff - Other,02-Apr-2020,2881.70,IPeople Solutions Limited T/A Action First
Bolton MBC,Children Services,Agency Staff - Other,09-Apr-2020,2874.05,IPeople Solutions Limited T/A Action First
Bolton MBC,Children Services,Agency Staff - Other,23-Apr-2020,2313.50,IPeople Solutions Limited T/A Action First
Bolton MBC,Children Services,Agency Staff - Other,02-Apr-2020,1761.80,IPeople Solutions Limited T/A Action First
Bolton MBC,Children Services,Agency Staff - Other,02-Apr-2020,1295.00,Retinue Solutions
Bolton MBC,Children Services,Agency Staff - Other,02-Apr-2020,1295.00,Retinue Solutions
Bolton MBC,Children Services,Agency Staff - Other,06-Apr-2020,1295.00,Retinue Solutions
Bolton MBC,Children Services,Agency Staff - Other,27-Apr-2020,1295.00,Retinue Solutions
Bolton MBC,Children Services,Agency Staff - Other,27-Apr-2020,1295.00,Retinue Solutions
Bolton MBC,Children Services,Agency Staff - Other,27-Apr-2020,1295.00,Retinue Solutions
Bolton MBC,Children Services,Agency Staff - Other,27-Apr-2020,1295.00,Retinue Solutions
Bolton MBC,Children Services,Agency Staff - Other,27-Apr-2020,1050.00,Retinue Solutions
Bolton MBC,Children Services,Other Fees,30-Apr-2020,6000.00,Aspects Psychology & Consultancy
Bolton MBC,Children Services,Other Fees,20-Apr-2020,3600.00,J S Educational Ltd
Bolton MBC,Children Services,Clients - Bus Passes,20-Apr-2020,13398.80,Transport For Greater Manchester
Bolton MBC,Children Services,Agency Staff - Other,02-Apr-2020,650.00,Connex Education Partnership Limited
Bolton MBC,Children Services,Agency Staff - Other,02-Apr-2020,650.00,Connex Education Partnership Limited
Bolton MBC,Children Services,Agency Staff - Other,02-Apr-2020,650.00,Connex Education Partnership Limited
Bolton MBC,Children Services,Agency Staff - Other,09-Apr-2020,650.00,Connex Education Partnership Limited
Bolton MBC,Children Services,Agency Staff - Other,20-Apr-2020,520.00,Connex Education Partnership Limited
Bolton MBC,Children Services,Agency Staff - Other,23-Apr-2020,520.00,Connex Education Partnership Limited
Bolton MBC,Children Services,Contracted Services,02-Apr-2020,650.00,REDACTED - Personal Data
Bolton MBC,Children Services,Other Fees,02-Apr-2020,1000.00,Tameside MBC
Bolton MBC,Children Services,Contracted Services,06-Apr-2020,1210.00,Baxter Rhodes Music
Bolton MBC,Children Services,Room Hire,06-Apr-2020,10000.00,Blackburn with Darwen Borough Council
Bolton MBC,Children Services,Contracted Services,06-Apr-2020,1991.47,BOBTEACHES
Bolton MBC,Children Services,Contracted Services,27-Apr-2020,1555.04,REDACTED - Personal Data
Bolton MBC,Children Services,Contracted Services,02-Apr-2020,742.00,REDACTED - Personal Data
Bolton MBC,Children Services,Contracted Services,02-Apr-2020,644.95,REDACTED - Personal Data
Bolton MBC,Children Services,Contracted Services,02-Apr-2020,619.25,REDACTED - Personal Data
Bolton MBC,Children Services,Room Hire,02-Apr-2020,1755.00,Stone Key (Blackburn) Limited
Bolton MBC,Children Services,Contracted Services,02-Apr-2020,600.00,ECM Education Consultants Ltd
Bolton MBC,Children Services,Contracted Services,02-Apr-2020,600.00,ECM Education Consultants Ltd
Bolton MBC,Children Services,Contracted Services,02-Apr-2020,2400.00,REDACTED - Personal Data
Bolton MBC,Children Services,Contracted Services,02-Apr-2020,1500.00,Hollinshead Educational Consultancy Ltd
Bolton MBC,Children Services,Private Contracted Services,20-Apr-2020,5032.50,Northern Education
Bolton MBC,Children Services,Private Contracted Services,09-Apr-2020,2287.50,Northern Education
Bolton MBC,Children Services,Fees/Expenses Schools,09-Apr-2020,2099.17,Low Wood Bay Resort & Spa
Bolton MBC,Chief Executives,Records Storage,02-Apr-2020,794.15,Dataspace
Bolton MBC,Chief Executives,Records Storage,09-Apr-2020,721.73,Dataspace
Bolton MBC,Chief Executives,Agency Staff - Other,02-Apr-2020,1003.88,Venn Group Limited
Bolton MBC,Chief Executives,Agency Staff - Other,09-Apr-2020,1003.88,Venn Group Limited
Bolton MBC,Chief Executives,Other Fees,09-Apr-2020,24939.46,North West Employers
Bolton MBC,Chief Executives,Training Exps Tuition Fees,20-Apr-2020,500.00,2040 Training Limited
Bolton MBC,Chief Executives,Agency Staff - Other,02-Apr-2020,1160.67,Venn Group Limited
Bolton MBC,Chief Executives,Agency Staff - Other,20-Apr-2020,1160.67,Venn Group Limited
Bolton MBC,Chief Executives,Agency Staff - Other,30-Apr-2020,1058.97,Venn Group Limited
Bolton MBC,Chief Executives,Grant Funded Expenditure,23-Apr-2020,4148.00,Forever Manchester
Bolton MBC,Chief Executives,Grant Funded Expenditure,23-Apr-2020,2592.00,Forever Manchester
Bolton MBC,Chief Executives,Office Equipment Maintenance,23-Apr-2020,12014.24,Ricoh UK Limited
Bolton MBC,Chief Executives,Office Equipment Maintenance,23-Apr-2020,7722.99,Ricoh UK Limited
Bolton MBC,Chief Executives,Office Equipment Maintenance,23-Apr-2020,4152.79,Ricoh UK Limited
Bolton MBC,Chief Executives,Office Equipment Maintenance,09-Apr-2020,585.50,Ricoh UK Limited
Bolton MBC,Chief Executives,Photocopying Lease/Maintenance,23-Apr-2020,6017.31,Ricoh UK Limited
Bolton MBC,Chief Executives,Advertising General,30-Apr-2020,1295.00,Informa Markets (UK) Limited
Bolton MBC,Chief Executives,Vehicle Purchase,20-Apr-2020,25193.69,Tusker
Bolton MBC,Chief Executives,Training Exps Tuition Fees,06-Apr-2020,29400.00,Me Learning Limited
Bolton MBC,Chief Executives,Marketing,02-Apr-2020,7599.32,The National Leaflet Company
Bolton MBC,Chief Executives,Day To Day Maintenance,14-Apr-2020,8999.70,Robertson Facilities Management Limited
Bolton MBC,Chief Executives,Consultancy Fees,23-Apr-2020,858.75,Robertson Facilities Management Limited
Bolton MBC,Chief Executives,Day To Day Maintenance,02-Apr-2020,1140.00,Bolton Stone Restoration Ltd
Bolton MBC,Chief Executives,Day To Day Maintenance,02-Apr-2020,1008.00,Bolton Stone Restoration Ltd
Bolton MBC,Chief Executives,Day To Day Maintenance,23-Apr-2020,3812.85,Robertson Facilities Management Limited
Bolton MBC,Chief Executives,Other Fees,20-Apr-2020,5257.84,Robertson Facilities Management Limited
Bolton MBC,Chief Executives,Other Fees,20-Apr-2020,4479.24,Robertson Facilities Management Limited
Bolton MBC,Chief Executives,Other Fees,20-Apr-2020,1117.52,Robertson Facilities Management Limited
Bolton MBC,Chief Executives,Other Fees,20-Apr-2020,687.00,Robertson Facilities Management Limited
Bolton MBC,Chief Executives,Other Fees,20-Apr-2020,8209.65,Robertson Facilities Management Limited
Bolton MBC,Chief Executives,Office Stationery,09-Apr-2020,557.00,Banner Group Limited
Bolton MBC,Chief Executives,Management Fee,06-Apr-2020,160776.39,CH Bolton Limited
Bolton MBC,Chief Executives,Management Fees,23-Apr-2020,10708.02,CH Bolton Limited
Bolton MBC,Chief Executives,Property Surveys,23-Apr-2020,126613.00,Robertson Facilities Management Limited
Bolton MBC,Chief Executives,Contracted Services,09-Apr-2020,508610.40,Robertson Facilities Management Limited
Bolton MBC,Chief Executives,Legal Fees,02-Apr-2020,5000.00,Colliers International Retail UK LLP
Bolton MBC,Chief Executives,Buildings Service Charge,16-Apr-2020,1123.38,Colliers International Property Consultants Limited
Bolton MBC,Chief Executives,Buildings Service Charge,16-Apr-2020,1123.38,Colliers International Property Consultants Limited
Bolton MBC,Chief Executives,Buildings Service Charge,06-Apr-2020,1083.00,Colliers International Property Consultants Limited
Bolton MBC,Chief Executives,Buildings Service Charge,06-Apr-2020,1083.00,Colliers International Property Consultants Limited
Bolton MBC,Chief Executives,Buildings Service Charge,06-Apr-2020,1054.50,Colliers International Property Consultants Limited
Bolton MBC,Chief Executives,Buildings Service Charge,06-Apr-2020,1054.50,Colliers International Property Consultants Limited
Bolton MBC,Chief Executives,Other Fees,16-Apr-2020,16150.00,Salford City Council
Bolton MBC,Chief Executives, Computer Software Licences,06-Apr-2020,1500.00,JC Applications Development
Bolton MBC,Chief Executives,External Audit Fees,30-Apr-2020,23312.00,Mazars LLP
Bolton MBC,Chief Executives,Other Fees,09-Apr-2020,7255.00,REDACTED - Personal Data
Bolton MBC,Chief Executives,Other Fees,23-Apr-2020,3475.00,REDACTED - Personal Data
Bolton MBC,Chief Executives,Other Fees,30-Apr-2020,3475.00,REDACTED - Personal Data
Bolton MBC,Chief Executives,Postages Direct Costs,06-Apr-2020,5096.57,Breeze Ltd
Bolton MBC,Chief Executives,Computer Software,20-Apr-2020,2862.54,xlprint software
Bolton MBC,Chief Executives,Computer Software,30-Apr-2020,2030.72,xlprint software
Bolton MBC,Chief Executives,Computer Software,30-Apr-2020,648.00,xlprint software
Bolton MBC,Chief Executives,Postages Direct Costs,06-Apr-2020,3461.95,Breeze Ltd
Bolton MBC,Chief Executives,Other Fees,02-Apr-2020,873.45,Jacobs Certificated Bailiffs#Jacobs
Bolton MBC,Chief Executives,Voice Network Management,30-Apr-2020,63683.93,Verint Systems UK Limited
Bolton MBC,Chief Executives,Other Fees,30-Apr-2020,11434.00,DAC Beachcroft LLP
Bolton MBC,Chief Executives,Other Fees,20-Apr-2020,10000.00,DAC Beachcroft LLP
Bolton MBC,Chief Executives,Other Fees,23-Apr-2020,1008.00,DAC Beachcroft LLP
Bolton MBC,Chief Executives,Computer Maintenance,02-Apr-2020,2054.00,GovDelivery#Granicus
Bolton MBC,Chief Executives,Other Fees,06-Apr-2020,4325.35,Allpay.net Limited
Bolton MBC,Chief Executives,Other Fees,06-Apr-2020,759.77,Allpay.net Limited
Bolton MBC,Chief Executives,Other Fees,06-Apr-2020,634.16,Allpay.net Limited
Bolton MBC,Chief Executives,Work in Progress Additions,02-Apr-2020,7500.00,Currie & Brown UK Limited
Bolton MBC,Chief Executives,Work in Progress Additions,02-Apr-2020,6335.07,Currie & Brown UK Limited
Bolton MBC,Chief Executives,Work in Progress Additions,02-Apr-2020,2859.00,Currie & Brown UK Limited
Bolton MBC,Chief Executives,Work in Progress Additions,30-Apr-2020,2396.30,Robertson Facilities Management Limited
Bolton MBC,Chief Executives,Work in Progress Additions,16-Apr-2020,2152.79,Robertson Facilities Management Limited
Bolton MBC,Chief Executives,Work in Progress Additions,09-Apr-2020,19179.70,Seddon Construction Limited
Bolton MBC,Development & Regeneration,Day To Day Maintenance,16-Apr-2020,5041.71,J Freeley Limited
Bolton MBC,Development & Regeneration,Other Fees,30-Apr-2020,3469.07,Wilde Consultants Limited
Bolton MBC,Development & Regeneration,Other Fees,02-Apr-2020,1534.97,Capita Property & Infrastructure Ltd
Bolton MBC,Development & Regeneration,Other Fees,20-Apr-2020,6049.92,CMS Cameron McKenna Nabarro Olswang LLP
Bolton MBC,Development & Regeneration,Other Fees,02-Apr-2020,4652.85,CMS Cameron McKenna Nabarro Olswang LLP
Bolton MBC,Development & Regeneration,Other Fees,23-Apr-2020,10799.47,Kennedys Law LLP
Bolton MBC,Development & Regeneration,Other Fees,23-Apr-2020,9870.39,Kennedys Law LLP
Bolton MBC,Development & Regeneration,Legal Fees,30-Apr-2020,1535.00,Kings Chambers
Bolton MBC,Development & Regeneration,Legal Fees,02-Apr-2020,1000.00,Kings Chambers
Bolton MBC,Development & Regeneration,Other Fees,06-Apr-2020,3762.50,Capita Property & Infrastructure Ltd
Bolton MBC,Development & Regeneration,Consultancy Fees,20-Apr-2020,14012.00,Arcadis (UK) Limited
Bolton MBC,Development & Regeneration,Consultancy Fees,20-Apr-2020,7642.00,Arcadis (UK) Limited
Bolton MBC,Development & Regeneration,Consultancy Fees,20-Apr-2020,7540.00,Arcadis (UK) Limited
Bolton MBC,Development & Regeneration,Consultancy Fees,20-Apr-2020,7540.00,Arcadis (UK) Limited
Bolton MBC,Development & Regeneration,Consultancy Fees,23-Apr-2020,6500.00,Arcadis (UK) Limited
Bolton MBC,Development & Regeneration,Consultancy Fees,20-Apr-2020,6153.00,Arcadis (UK) Limited
Bolton MBC,Development & Regeneration,Agency Staff - Other,20-Apr-2020,18500.00,Arcadis (UK) Limited
Bolton MBC,Development & Regeneration,Agency Staff - Other,20-Apr-2020,7133.66,Capita Property & Infrastructure Ltd
Bolton MBC,Development & Regeneration,Agency Staff - Other,20-Apr-2020,6317.74,Capita Property & Infrastructure Ltd
Bolton MBC,Development & Regeneration,Agency Staff - Other,30-Apr-2020,4640.52,Capita Property & Infrastructure Ltd
Bolton MBC,Development & Regeneration,Agency Staff - Other,20-Apr-2020,1995.00,Capita Property & Infrastructure Ltd
Bolton MBC,Development & Regeneration,Statutory Notices,27-Apr-2020,1173.00,Newsquest Media Group
Bolton MBC,Development & Regeneration,Statutory Notices,06-Apr-2020,663.00,Newsquest Media Group
Bolton MBC,Development & Regeneration,Statutory Notices,06-Apr-2020,612.00,Newsquest Media Group
Bolton MBC,Development & Regeneration,Statutory Notices,20-Apr-2020,544.00,Newsquest Media Group
Bolton MBC,Development & Regeneration,Consultancy Fees,27-Apr-2020,4500.00,TPM Landscape Limited
Bolton MBC,Development & Regeneration,Marketing,09-Apr-2020,11500.00,Arcadis (UK) Limited
Bolton MBC,Development & Regeneration,Promoting Bolton,14-Apr-2020,3186.30,Robertson Facilities Management Limited
Bolton MBC,Development & Regeneration,General Subscriptions,09-Apr-2020,650.00,ERSA UK Limited#Employment Related Services Association
Bolton MBC,Development & Regeneration,Staff Conference Expenses,02-Apr-2020,540.00,The Society of Chief Librarians#SCL
Bolton MBC,Development & Regeneration,Other Fees,27-Apr-2020,5000.00,Bolton Arts Forum
Bolton MBC,Development & Regeneration,Other Fees,06-Apr-2020,900.00,Creative With Nature
Bolton MBC,Development & Regeneration,Rent of Storage Facilities,06-Apr-2020,720.00,J W Whittle Limited#Store-Away Archive Facilities
Bolton MBC,Development & Regeneration,Rent of Storage Facilities,02-Apr-2020,552.00,J W Whittle Limited#Store-Away Archive Facilities
Bolton MBC,Development & Regeneration,Operational Equipment Maint,06-Apr-2020,960.00,Covergold Limited
Bolton MBC,Development & Regeneration,Other Fees,20-Apr-2020,4096.40,BCL
Bolton MBC,Development & Regeneration,Computer Maintenance,02-Apr-2020,3095.00,Meaco Measurement & Control Ltd
Bolton MBC,Development & Regeneration,Book Fund Expenditure,30-Apr-2020,6000.00,Bolinda UK Limited
Bolton MBC,Development & Regeneration,Marketing,06-Apr-2020,640.00,Frisby Technical Services Ltd
Bolton MBC,Development & Regeneration,Direct Materials,02-Apr-2020,1680.00,Jones Lighting Limited
Bolton MBC,Development & Regeneration,Marketing,06-Apr-2020,1035.00,NB Colour Print Limited
Bolton MBC,Development & Regeneration,Other Fees,20-Apr-2020,2424.50,Robertson Facilities Management Limited
Bolton MBC,Development & Regeneration,Budget Redirection,23-Apr-2020,42279.13,Robertson Facilities Management Limited
Bolton MBC,Development & Regeneration,Work in Progress Additions,02-Apr-2020,2000.00,AA Projects Limited
Bolton MBC,Development & Regeneration,Work in Progress Additions,02-Apr-2020,2000.00,AA Projects Limited
Bolton MBC,Development & Regeneration,Work in Progress Additions,30-Apr-2020,2000.00,AA Projects Limited
Bolton MBC,Development & Regeneration,Work in Progress Additions,09-Apr-2020,10000.00,Colliers International Retail UK LLP
Bolton MBC,Development & Regeneration,Work in Progress Additions,20-Apr-2020,27500.00,Deloitte LLP
Bolton MBC,Development & Regeneration,Work in Progress Additions,30-Apr-2020,5296.90,Hardscape Products Ltd
Bolton MBC,Development & Regeneration,Work in Progress Additions,02-Apr-2020,1744.01,Hardscape Products Ltd
Bolton MBC,Development & Regeneration,Work in Progress Additions,20-Apr-2020,515.34,Hardscape Products Ltd
Bolton MBC,Development & Regeneration,Work in Progress Additions,06-Apr-2020,950.00,Knights Professional Services Ltd T/A Knights LLP Limited
Bolton MBC,Development & Regeneration,Work in Progress Additions,06-Apr-2020,950.00,Knights Professional Services Ltd T/A Knights LLP Limited
Bolton MBC,Development & Regeneration,Work in Progress Additions,30-Apr-2020,90624.65,Robertson Facilities Management Limited
Bolton MBC,Development & Regeneration,Work in Progress Additions,30-Apr-2020,970.60,Robertson Facilities Management Limited
Bolton MBC,Development & Regeneration,Work in Progress Additions,06-Apr-2020,1122.39,Transport For Greater Manchester
Bolton MBC,Development & Regeneration,Work in Progress Additions,06-Apr-2020,2117.79,Virgin Media Payments Limited#Virgin Media Business
Bolton MBC,Development & Regeneration,Work in Progress Additions,06-Apr-2020,687.23,Wilde Consultants Limited
Bolton MBC,Development & Regeneration,Work in Progress Additions,20-Apr-2020,305807.64,Willmott Dixon Construction Limited
Bolton MBC,Environmental Services,Engineering Work,09-Apr-2020,519.75,George Cox & Sons Limited
Bolton MBC,Environmental Services,Engineering Work,23-Apr-2020,1475.65,J Hopkins (Contractors) Ltd
Bolton MBC,Environmental Services, Computer Software Licences,23-Apr-2020,8350.00,Symetri Limited
Bolton MBC,Environmental Services,Agency Staff - Full-time,14-Apr-2020,9349.13,Wilde Consultants Limited
Bolton MBC,Environmental Services,Direct Materials,02-Apr-2020,580.00,Aggregate Industries UK Limited
Bolton MBC,Environmental Services,General Materials,02-Apr-2020,728.56,Centurion Hydraulics Ltd
Bolton MBC,Environmental Services,Engineering Work,02-Apr-2020,7560.00,J Hopkins (Contractors) Ltd
Bolton MBC,Environmental Services,Engineering Work,16-Apr-2020,1620.00,J Hopkins (Contractors) Ltd
Bolton MBC,Environmental Services,Engineering Work,06-Apr-2020,8330.00,Multipave (NW) Limited
Bolton MBC,Environmental Services,Engineering Work,06-Apr-2020,7350.00,Multipave (NW) Limited
Bolton MBC,Environmental Services,Direct Materials,16-Apr-2020,1160.00,Nu-Phalt Limited
Bolton MBC,Environmental Services,Direct Materials,06-Apr-2020,2498.00,Red Stag Materials Limited
Bolton MBC,Environmental Services,Plant Hire,09-Apr-2020,1300.00,Richard Burton Haulage Limited
Bolton MBC,Environmental Services,Plant Hire,14-Apr-2020,780.00,Richard Burton Haulage Limited
Bolton MBC,Environmental Services,Engineering Work,09-Apr-2020,821.00,Vaisala Ltd
Bolton MBC,Environmental Services,Engineering Work,30-Apr-2020,2551.95,J Hopkins (Contractors) Ltd
Bolton MBC,Environmental Services,Direct Materials,09-Apr-2020,1702.93,Aggregate Industries UK Limited
Bolton MBC,Environmental Services,Direct Materials,02-Apr-2020,1312.50,Aggregate Industries UK Limited
Bolton MBC,Environmental Services,Direct Materials,09-Apr-2020,1104.87,Aggregate Industries UK Limited
Bolton MBC,Environmental Services,Direct Materials,09-Apr-2020,1093.13,Aggregate Industries UK Limited
Bolton MBC,Environmental Services,Direct Materials,09-Apr-2020,1071.27,Aggregate Industries UK Limited
Bolton MBC,Environmental Services,Direct Materials,09-Apr-2020,1037.12,Aggregate Industries UK Limited
Bolton MBC,Environmental Services,Direct Materials,09-Apr-2020,1026.45,Aggregate Industries UK Limited
Bolton MBC,Environmental Services,Direct Materials,09-Apr-2020,980.00,Aggregate Industries UK Limited
Bolton MBC,Environmental Services,Direct Materials,09-Apr-2020,980.00,Aggregate Industries UK Limited
Bolton MBC,Environmental Services,Direct Materials,09-Apr-2020,980.00,Aggregate Industries UK Limited
Bolton MBC,Environmental Services,Direct Materials,09-Apr-2020,980.00,Aggregate Industries UK Limited
Bolton MBC,Environmental Services,Direct Materials,09-Apr-2020,869.75,Aggregate Industries UK Limited
Bolton MBC,Environmental Services,Direct Materials,16-Apr-2020,712.96,Aggregate Industries UK Limited
Bolton MBC,Environmental Services,Direct Materials,16-Apr-2020,708.76,Aggregate Industries UK Limited
Bolton MBC,Environmental Services,Direct Materials,09-Apr-2020,612.50,Aggregate Industries UK Limited
Bolton MBC,Environmental Services,Direct Materials,02-Apr-2020,590.57,Aggregate Industries UK Limited
Bolton MBC,Environmental Services,Direct Materials,09-Apr-2020,581.13,Aggregate Industries UK Limited
Bolton MBC,Environmental Services,General Materials,09-Apr-2020,1152.00,Bollard Street Ltd
Bolton MBC,Environmental Services,Plant Hire,09-Apr-2020,1300.00,Richard Burton Haulage Limited
Bolton MBC,Environmental Services,Plant Hire,30-Apr-2020,650.00,Sibcas Limited
Bolton MBC,Environmental Services,Plant Hire,23-Apr-2020,520.00,Sibcas Limited
Bolton MBC,Environmental Services,Plant Hire,23-Apr-2020,520.00,Sibcas Limited
Bolton MBC,Environmental Services,Plant Hire,23-Apr-2020,520.00,Sibcas Limited
Bolton MBC,Environmental Services,Direct Materials,02-Apr-2020,598.64,Aggregate Industries UK Limited
Bolton MBC,Environmental Services,Direct Materials,02-Apr-2020,1045.00,Spandex Ltd
Bolton MBC,Environmental Services,Programmed Maint. Work,30-Apr-2020,876.76,J Dickinson & Sons (Horwich) Limited#2
Bolton MBC,Environmental Services,Programmed Maint. Work,30-Apr-2020,620.24,J Dickinson & Sons (Horwich) Limited#2
Bolton MBC,Environmental Services,Programmed Maint. Work,30-Apr-2020,526.96,J Dickinson & Sons (Horwich) Limited#2
Bolton MBC,Environmental Services,Engineering Work,06-Apr-2020,1000.00,Pure Utility Solutions Limited
Bolton MBC,Environmental Services,Contract Unit-Non-LEA,16-Apr-2020,50597.09,NSL Limited#NSL Services Group
Bolton MBC,Environmental Services,Contract Unit-Non-LEA,06-Apr-2020,49668.43,NSL Limited#NSL Services Group
Bolton MBC,Environmental Services,Contract Unit-Non-LEA,09-Apr-2020,22294.20,NSL Limited#NSL Services Group
Bolton MBC,Environmental Services,Mobile Telephone Calls,27-Apr-2020,520.66,O2 (UK) Limited#TELEFONICA
Bolton MBC,Environmental Services,Grant Funded Expenditure,27-Apr-2020,500.00,Independent Choices#Greater Manchester
Bolton MBC,Environmental Services,Operational Equipment Purchase,09-Apr-2020,7000.00,Wireless CCTV Limited
Bolton MBC,Environmental Services,Grant Funded Expenditure,16-Apr-2020,6250.00,Paws For Kids#Endeavour Project
Bolton MBC,Environmental Services,Grant Funded Expenditure,09-Apr-2020,5000.00,Great Lever Connected
Bolton MBC,Environmental Services,Uniforms,09-Apr-2020,1512.00,Evolve Corporate Ltd T/A PK Safety
Bolton MBC,Environmental Services,Office Stationery,23-Apr-2020,1749.90,Bureau Veritas UK Limited
Bolton MBC,Environmental Services,Legal Fees,20-Apr-2020,500.00,Deans Court Chambers
Bolton MBC,Environmental Services,Test Purchases/Analysis,16-Apr-2020,696.00,Lancashire County Council
Bolton MBC,Environmental Services,Strategic Projects,02-Apr-2020,2036.00,Ricardo AEA Limited#Energy & Environment
Bolton MBC,Environmental Services,Partnership Staff,23-Apr-2020,2000.00,Tameside MBC
Bolton MBC,Environmental Services,Strategic Projects,16-Apr-2020,6500.00,Wireless CCTV Limited
Bolton MBC,Environmental Services,Training Exps Tuition Fees,06-Apr-2020,7200.00,Personnel Checks Limited
Bolton MBC,Environmental Services,Operational Equipment Purchase,16-Apr-2020,8738.03,VIP-System Limited
Bolton MBC,Environmental Services,Contracted Services,09-Apr-2020,500.00,Bolton Tree Services
Bolton MBC,Environmental Services,Contracted Services,27-Apr-2020,9776.00,Challenger Site Services LLP
Bolton MBC,Environmental Services,Contracted Services,02-Apr-2020,750.00,Greenwood Tree Services Limited
Bolton MBC,Environmental Services,Contracted Services,27-Apr-2020,750.00,Greenwood Tree Services Limited
Bolton MBC,Environmental Services,Day To Day Maintenance,02-Apr-2020,2591.04,Woodscape Limited
Bolton MBC,Environmental Services,Transport Mtnce-Modify Jobs,09-Apr-2020,1287.36,Advanced Communication Projects Limited
Bolton MBC,Environmental Services,Contracted Services,02-Apr-2020,2647.00,Earlsmere Limited
Bolton MBC,Environmental Services,Maint Of Playgrounds,06-Apr-2020,3016.00,Peak Fabrications (Bolton) Limited
Bolton MBC,Environmental Services,Plant Hire,06-Apr-2020,529.25,Robinson Plant Hire
Bolton MBC,Environmental Services,Plant Hire,06-Apr-2020,529.25,Robinson Plant Hire
Bolton MBC,Environmental Services,Day To Day Maintenance,27-Apr-2020,1692.50,T Lowe & Son Limited
Bolton MBC,Environmental Services,Plant Hire,02-Apr-2020,529.25,Robinson Plant Hire
Bolton MBC,Environmental Services,General Materials,02-Apr-2020,2400.20,Anthony Axford Ltd
Bolton MBC,Environmental Services,General Materials,30-Apr-2020,2492.40,Ashdown Supplies
Bolton MBC,Environmental Services,Direct Materials,30-Apr-2020,1075.28,Calligraphy UK Ltd
Bolton MBC,Environmental Services,Sewerage & Env'mental Servs,30-Apr-2020,1580.00,Environment Agency
Bolton MBC,Environmental Services,Plant Hire,30-Apr-2020,5173.50,J C Davies Plant Hire
Bolton MBC,Environmental Services,Plant Hire,23-Apr-2020,2293.50,J C Davies Plant Hire
Bolton MBC,Environmental Services,Direct Materials,09-Apr-2020,1395.00,Vivedia Limited
Bolton MBC,Environmental Services,Direct Materials,27-Apr-2020,500.00,Vivedia Limited
Bolton MBC,Environmental Services,Horticultural Materials,02-Apr-2020,601.60,E N Coxhead Limited
Bolton MBC,Environmental Services,Horticultural Materials,09-Apr-2020,2480.59,Meadowview Stone
Bolton MBC,Environmental Services,Fixed Equipment  - Repairs,30-Apr-2020,5564.00,REDACTED - Personal Data
Bolton MBC,Environmental Services,Other Fees,14-Apr-2020,3029.07,REDACTED - Personal Data
Bolton MBC,Environmental Services,Horticultural Materials,30-Apr-2020,1232.10,Tillage Nurseries
Bolton MBC,Environmental Services,Horticultural Materials,02-Apr-2020,530.30,Tillage Nurseries
Bolton MBC,Environmental Services,Horticultural Materials,09-Apr-2020,3101.50,Vatre Terracotta Limited#apta
Bolton MBC,Environmental Services,Horticultural Materials,09-Apr-2020,1241.40,Woodlodge Products
Bolton MBC,Environmental Services,Horticultural Materials,09-Apr-2020,809.28,Woodlodge Products
Bolton MBC,Environmental Services,Agency Staff - Other,20-Apr-2020,3895.11,Profile Security Services Ltd
Bolton MBC,Environmental Services,Agency Staff - Other,30-Apr-2020,2791.30,Profile Security Services Ltd
Bolton MBC,Environmental Services,Agency Staff - Other,30-Apr-2020,2235.75,Profile Security Services Ltd
Bolton MBC,Environmental Services,Agency Staff - Other,30-Apr-2020,2223.32,Profile Security Services Ltd
Bolton MBC,Environmental Services,Agency Staff - Other,30-Apr-2020,965.16,Profile Security Services Ltd
Bolton MBC,Environmental Services,Agency Staff - Other,30-Apr-2020,827.28,Profile Security Services Ltd
Bolton MBC,Environmental Services,Agency Staff - Other,30-Apr-2020,734.58,Profile Security Services Ltd
Bolton MBC,Environmental Services,Agency Staff - Other,30-Apr-2020,551.52,Profile Security Services Ltd
Bolton MBC,Environmental Services,Agency Staff - Other,30-Apr-2020,551.52,Profile Security Services Ltd
Bolton MBC,Environmental Services,Operational Equipment Purchase,02-Apr-2020,4500.00,Spectra Security Ltd
Bolton MBC,Environmental Services,Caretaking/Cleaning Equipment,30-Apr-2020,1151.50,PHS Group PLC
Bolton MBC,Environmental Services,Caretaking/Cleaning Equipment,02-Apr-2020,661.50,PHS Group PLC
Bolton MBC,Environmental Services,Franking Machine,09-Apr-2020,900.73,Nationwide Franking Sense Ltd#1
Bolton MBC,Environmental Services,Catering Provisions-Food,06-Apr-2020,4989.58,J W Young (Butchers) Limited
Bolton MBC,Environmental Services,Catering Provisions-Food,02-Apr-2020,4241.25,UK Roberts Group Limited T/A Oil Trader
Bolton MBC,Environmental Services, Computer Software Licences,09-Apr-2020,516.06,Unique IQ Limited
Bolton MBC,Environmental Services,Contracted Services,23-Apr-2020,1050.00,A1 Vehicle Dismantlers
Bolton MBC,Environmental Services,Contracted Services,06-Apr-2020,650.00,A1 Vehicle Dismantlers
Bolton MBC,Environmental Services,Information and Communication Technology,27-Apr-2020,1020.00,Advanced Communication Projects Limited
Bolton MBC,Environmental Services,Uninsured Losses - Vehicles,16-Apr-2020,902.00,AEBI Schmidt UK Limited
Bolton MBC,Environmental Services,Contracted Services,06-Apr-2020,998.99,AEBI Schmidt UK Limited
Bolton MBC,Environmental Services,Operational Equipment Purchase,16-Apr-2020,4250.00,C A S Products Limited
Bolton MBC,Environmental Services,Vehicle Servicing,16-Apr-2020,1238.00,C P Davidson & Sons Limited
Bolton MBC,Environmental Services,Contracted Services,16-Apr-2020,612.34,C P Davidson & Sons Limited
Bolton MBC,Environmental Services,Contracted Services,16-Apr-2020,573.15,Centurion Hydraulics Ltd
Bolton MBC,Environmental Services,Training Exps Tuition Fees,02-Apr-2020,531.25,Defensive Driver Training Ltd
Bolton MBC,Environmental Services,Training Exps Tuition Fees,14-Apr-2020,522.50,Defensive Driver Training Ltd
Bolton MBC,Environmental Services,Contracted Services,16-Apr-2020,2461.21,Faun Zoeller (UK) Limited
Bolton MBC,Environmental Services,Contracted Services,23-Apr-2020,879.45,Faun Zoeller (UK) Limited
Bolton MBC,Environmental Services,Contracted Services,16-Apr-2020,836.00,Faun Zoeller (UK) Limited
Bolton MBC,Environmental Services,Tyres,16-Apr-2020,1479.45,J A Tyre Service Ltd
Bolton MBC,Environmental Services,Tyres,16-Apr-2020,973.90,J A Tyre Service Ltd
Bolton MBC,Environmental Services,Tyres,16-Apr-2020,646.40,J A Tyre Service Ltd
Bolton MBC,Environmental Services,Tyres,16-Apr-2020,590.80,J A Tyre Service Ltd
Bolton MBC,Environmental Services,Vehicle Servicing,16-Apr-2020,522.00,Lancashire Daf
Bolton MBC,Environmental Services,Transport Hire,16-Apr-2020,3080.00,Leeds Commercial Limited
Bolton MBC,Environmental Services,Transport Hire,16-Apr-2020,1100.00,Leeds Commercial Limited
Bolton MBC,Environmental Services,Vehicle Servicing,16-Apr-2020,1020.00,LPW (Europe) Ltd
Bolton MBC,Environmental Services,Contracted Services,16-Apr-2020,510.00,LPW (Europe) Ltd
Bolton MBC,Environmental Services,Transport Hire,16-Apr-2020,2475.00,N D Brown Ltd
Bolton MBC,Environmental Services,Transport Hire,16-Apr-2020,1320.00,Priority Hire Limited
Bolton MBC,Environmental Services,Transport Hire,23-Apr-2020,1210.00,Priority Hire Limited
Bolton MBC,Environmental Services,Transport Hire,23-Apr-2020,1100.00,Priority Hire Limited
Bolton MBC,Environmental Services,Transport Hire,16-Apr-2020,1100.00,Priority Hire Limited
Bolton MBC,Environmental Services,Agency Staff - Other,16-Apr-2020,1777.71,Proactive Personnel Limited
Bolton MBC,Environmental Services,Agency Staff - Other,16-Apr-2020,1678.15,Proactive Personnel Limited
Bolton MBC,Environmental Services,Agency Staff - Other,16-Apr-2020,1523.52,Proactive Personnel Limited
Bolton MBC,Environmental Services,Agency Staff - Other,16-Apr-2020,1202.78,Proactive Personnel Limited
Bolton MBC,Environmental Services,Agency Staff - Other,16-Apr-2020,847.67,Proactive Personnel Limited
Bolton MBC,Environmental Services,Agency Staff - Other,16-Apr-2020,847.67,Proactive Personnel Limited
Bolton MBC,Environmental Services,Agency Staff - Other,23-Apr-2020,847.67,Proactive Personnel Limited
Bolton MBC,Environmental Services,Agency Staff - Other,16-Apr-2020,847.61,Proactive Personnel Limited
Bolton MBC,Environmental Services,Agency Staff - Other,16-Apr-2020,675.85,Proactive Personnel Limited
Bolton MBC,Environmental Services,Operational Equipment Purchase,06-Apr-2020,1850.00,Vehicle Technology Solutions Limited#VTS
Bolton MBC,Environmental Services,Op Equip Health and Safety,14-Apr-2020,955.00,Vehicle Technology Solutions Limited#VTS
Bolton MBC,Environmental Services,Uninsured Losses - Vehicles,14-Apr-2020,1554.25,W & S C Jobson
Bolton MBC,Environmental Services,Contracted Services,14-Apr-2020,1906.36,W & S C Jobson
Bolton MBC,Environmental Services,Contracted Services,16-Apr-2020,1475.89,W & S C Jobson
Bolton MBC,Environmental Services,Contracted Services,14-Apr-2020,1232.88,W & S C Jobson
Bolton MBC,Environmental Services,Contracted Services,14-Apr-2020,1141.95,W & S C Jobson
Bolton MBC,Environmental Services,Contracted Services,14-Apr-2020,1037.22,W & S C Jobson
Bolton MBC,Environmental Services,Contracted Services,14-Apr-2020,1031.50,W & S C Jobson
Bolton MBC,Environmental Services,Contracted Services,14-Apr-2020,959.48,W & S C Jobson
Bolton MBC,Environmental Services,Contracted Services,09-Apr-2020,660.80,W & S C Jobson
Bolton MBC,Environmental Services,Contracted Services,16-Apr-2020,621.43,W & S C Jobson
Bolton MBC,Environmental Services,Contracted Services,14-Apr-2020,614.92,W & S C Jobson
Bolton MBC,Environmental Services,Contracted Services,16-Apr-2020,592.23,W & S C Jobson
Bolton MBC,Environmental Services,Contracted Services,16-Apr-2020,569.08,W & S C Jobson
Bolton MBC,Environmental Services,Contracted Services,16-Apr-2020,537.12,W & S C Jobson
Bolton MBC,Environmental Services,Contracted Services,14-Apr-2020,533.01,W & S C Jobson
Bolton MBC,Environmental Services,Consultancy Fees,02-Apr-2020,31250.00,Edge Public Solutions Limited
Bolton MBC,Environmental Services,Clients - Swimming Fares,02-Apr-2020,2080.00,R S Tyrer Ltd
Bolton MBC,Environmental Services,Clients - Taxi Fares,09-Apr-2020,1160.00,Rossendale School#Charity Account
Bolton MBC,Environmental Services,Clients - Taxi Fares,09-Apr-2020,800.00,Rossendale School#Charity Account
Bolton MBC,Environmental Services,Modems and Lines,30-Apr-2020,1888.54,Babble Cloud Limited
Bolton MBC,Environmental Services,Modems and Lines,06-Apr-2020,944.69,Babble Cloud Limited
Bolton MBC,Environmental Services,Advertising General,06-Apr-2020,895.00,McGrath Media
Bolton MBC,Environmental Services,General Subscriptions,30-Apr-2020,716.00,NABMA
Bolton MBC,Environmental Services,Operational Equipment Maint,06-Apr-2020,1605.31,Pakawaste Engineering Services Ltd
Bolton MBC,Environmental Services,Health and Safety,30-Apr-2020,590.00,Premier Pest Services
Bolton MBC,Environmental Services,Other Security Expenses,30-Apr-2020,4952.55,S Security Limited
Bolton MBC,Environmental Services,General Subscriptions,06-Apr-2020,3520.00,APSE
Bolton MBC,Environmental Services,Health and Safety,02-Apr-2020,649.74,Automatic Alarms Limited
Bolton MBC,Environmental Services,Other Fees,06-Apr-2020,525.00,Impression (Bolton) Limited#1
Bolton MBC,Environmental Services,Marketing,09-Apr-2020,2523.00,McGrath Media
Bolton MBC,Environmental Services,Artistes Fees,27-Apr-2020,5109.17,The Lowry Centre Limited#The Lowry Art & Entertainment
Bolton MBC,Environmental Services,Artistes Fees,06-Apr-2020,2355.66,Tom Rolfe Productions
Bolton MBC,Environmental Services,Artistes Fees,02-Apr-2020,2258.00,World Wide Promotions
Bolton MBC,Environmental Services,CR Bal Hold A/c Exp,23-Apr-2020,600.00,Jeremy Benn Associates Limited T/A JBA Consulting
Bolton MBC,Environmental Services,Work in Progress Additions,27-Apr-2020,31977.00,One51 ES Plastics (UK) Limited T/A MGB Plastics
Bolton MBC,Financial Services,Miscellaneous Expenses,09-Apr-2020,12950.00,Hays Specialist Recruitment
Bolton MBC,Financial Services,Miscellaneous Expenses,09-Apr-2020,11616.67,Hays Specialist Recruitment
Bolton MBC,Financial Services,Operational Equipment Rental,20-Apr-2020,980.00,Childwall Table & Chair Hire
Bolton MBC,Financial Services,Operational Equipment Rental,20-Apr-2020,900.00,Childwall Table & Chair Hire
Bolton MBC,Financial Services,Operational Equipment Rental,30-Apr-2020,900.00,Childwall Table & Chair Hire
Bolton MBC,Housing GRF,Operational Equipment Purchase,23-Apr-2020,1935.00,Bailey Instruments Ltd
Bolton MBC,Housing GRF,Op Equip Furniture Purchase,23-Apr-2020,1632.00,The Cosy Bedding Company Limited
Bolton MBC,Housing GRF,Other Fees,02-Apr-2020,2895.54,Salvation Army Housing Association
Bolton MBC,Housing GRF,Other Fees,23-Apr-2020,2893.75,Salvation Army Housing Association
Bolton MBC,Housing GRF,Security Systems - Rental,09-Apr-2020,2046.46,Acorn Environment Services Ltd
Bolton MBC,Housing GRF,Legal Fees,14-Apr-2020,1300.00,Cobden House Chambers
Bolton MBC,Housing GRF,Agency Staff - Full-time,02-Apr-2020,1128.50,James Andrews Recruitment Solutions Limited
Bolton MBC,Housing GRF,Agency Staff - Full-time,06-Apr-2020,1128.50,James Andrews Recruitment Solutions Limited
Bolton MBC,Housing GRF,Agency Staff - Full-time,20-Apr-2020,1113.25,James Andrews Recruitment Solutions Limited
Bolton MBC,Housing GRF,Agency Staff - Other,16-Apr-2020,1128.50,James Andrews Recruitment Solutions Limited
Bolton MBC,Housing GRF,Agency Staff - Full-time,02-Apr-2020,1165.50,Vivid Resourcing
Bolton MBC,Housing GRF,Agency Staff - Full-time,02-Apr-2020,1149.75,Vivid Resourcing
Bolton MBC,Housing GRF,Other Security Expenses,27-Apr-2020,1142.40,Alsecure Group Ltd
Bolton MBC,Housing GRF,Other Security Expenses,02-Apr-2020,999.60,Alsecure Group Ltd
Bolton MBC,Housing GRF,Other Security Expenses,09-Apr-2020,999.60,Alsecure Group Ltd
Bolton MBC,Housing GRF,Other Security Expenses,09-Apr-2020,999.60,Alsecure Group Ltd
Bolton MBC,Housing GRF,Other Security Expenses,23-Apr-2020,999.60,Alsecure Group Ltd
Bolton MBC,Housing GRF,Agency Staff - Other,02-Apr-2020,4680.00,Bolton Council Of Mosques#1
Bolton MBC,Housing GRF,Clients Temporary Accommodation,06-Apr-2020,7700.00,Grosvenor Guest House
Bolton MBC,Housing GRF,Clients Temporary Accommodation,30-Apr-2020,3500.00,Grosvenor Guest House
Bolton MBC,Housing GRF,Clients Temporary Accommodation,06-Apr-2020,1000.00,MK Hotels
Bolton MBC,Housing GRF,Other Security Expenses,09-Apr-2020,991.20,Alsecure Group Ltd
Bolton MBC,Housing GRF,Other Security Expenses,09-Apr-2020,991.20,Alsecure Group Ltd
Bolton MBC,Housing GRF,Painting & Decorating,02-Apr-2020,585.00,J G Redford Limited
Bolton MBC,Housing GRF,Day To Day Maintenance Structural,20-Apr-2020,10534.00,Robertson Facilities Management Limited
Bolton MBC,Housing GRF,Clients Temporary Accommodation,14-Apr-2020,8680.00,MK Hotels
Bolton MBC,Housing GRF,Clients Temporary Accommodation,30-Apr-2020,8680.00,MK Hotels
Bolton MBC,Housing GRF,Clients Temporary Accommodation,06-Apr-2020,8400.00,MK Hotels
Bolton MBC,Housing GRF,Clients Temporary Accommodation,06-Apr-2020,8120.00,MK Hotels
Bolton MBC,Housing GRF,Clients Temporary Accommodation,14-Apr-2020,2450.00,MK Hotels
Bolton MBC,Housing GRF,Clients Temporary Accommodation,14-Apr-2020,2450.00,MK Hotels
Bolton MBC,Housing GRF,Clients Temporary Accommodation,06-Apr-2020,2450.00,MK Hotels
Bolton MBC,Housing GRF,Clients Temporary Accommodation,06-Apr-2020,2450.00,MK Hotels
Bolton MBC,Housing GRF,Clients Temporary Accommodation,14-Apr-2020,2450.00,MK Hotels
Bolton MBC,Housing GRF,Clients Temporary Accommodation,23-Apr-2020,2450.00,MK Hotels
Bolton MBC,Housing GRF,Clients Temporary Accommodation,06-Apr-2020,2400.00,MK Hotels
Bolton MBC,Housing GRF,Clients Temporary Accommodation,06-Apr-2020,2400.00,MK Hotels
Bolton MBC,Housing GRF,Clients Temporary Accommodation,30-Apr-2020,2400.00,MK Hotels
Bolton MBC,Housing GRF,Clients Temporary Accommodation,23-Apr-2020,2350.00,MK Hotels
Bolton MBC,Housing GRF,Clients Temporary Accommodation,16-Apr-2020,2250.00,MK Hotels
Bolton MBC,Housing GRF,Clients Temporary Accommodation,06-Apr-2020,1100.00,MK Hotels
Bolton MBC,Housing GRF,Other Agency/Contracted Services,02-Apr-2020,7443.00,Bolton NHS Foundation Trust#1
Bolton MBC,Housing GRF,Legal Fees,20-Apr-2020,2958.32,DAC Beachcroft LLP
Bolton MBC,Housing GRF,Rent Of Buildings,20-Apr-2020,1089.00,DKR Properties#2
Bolton MBC,Housing GRF,Rent Of Buildings,16-Apr-2020,975.00,John Edwards Ltd#2
Bolton MBC,Housing GRF,Rent Of Buildings,16-Apr-2020,1249.04,Lang Estates Limited
Bolton MBC,Housing GRF,Rent Of Buildings,16-Apr-2020,1245.30,Lang Estates Limited
Bolton MBC,Housing GRF,R&M Clerk Of Works,09-Apr-2020,1786.19,REDACTED - Personal Data
Bolton MBC,Housing GRF,Rent Of Buildings,23-Apr-2020,1421.37,REDACTED - Personal Data
Bolton MBC,Housing GRF,Rent Of Buildings,09-Apr-2020,1322.00,REDACTED - Personal Data
Bolton MBC,Housing GRF,Rent Of Buildings,02-Apr-2020,1313.25,REDACTED - Personal Data
Bolton MBC,Housing GRF,Rent Of Buildings,27-Apr-2020,1267.02,REDACTED - Personal Data
Bolton MBC,Housing GRF,Rent Of Buildings,23-Apr-2020,1215.00,REDACTED - Personal Data
Bolton MBC,Housing GRF,Rent Of Buildings,02-Apr-2020,1171.61,REDACTED - Personal Data
Bolton MBC,Housing GRF,Rent Of Buildings,23-Apr-2020,1141.96,REDACTED - Personal Data
Bolton MBC,Housing GRF,Rent Of Buildings,02-Apr-2020,1076.50,REDACTED - Personal Data
Bolton MBC,Housing GRF,Rent Of Buildings,09-Apr-2020,1063.70,REDACTED - Personal Data
Bolton MBC,Housing GRF,Rent Of Buildings,23-Apr-2020,1046.02,REDACTED - Personal Data
Bolton MBC,Housing GRF,Rent Of Buildings,16-Apr-2020,1020.10,REDACTED - Personal Data
Bolton MBC,Housing GRF,Rent Of Buildings,09-Apr-2020,911.20,REDACTED - Personal Data
Bolton MBC,Housing GRF,Rent Of Buildings,02-Apr-2020,5460.00,William Newsome Properties
Bolton MBC,Housing GRF,Rent Of Buildings,02-Apr-2020,5460.00,William Newsome Properties
Bolton MBC,Housing GRF,Agency Staff - Other,02-Apr-2020,1091.02,Vivid Resourcing
Bolton MBC,Housing GRF,Agency Staff - Other,02-Apr-2020,1013.53,Vivid Resourcing
Bolton MBC,Housing GRF,Equip Furniture Purchase,23-Apr-2020,615.00,The Cosy Bedding Company Limited
Bolton MBC,Housing GRF,Op Equip Furniture Purchase,20-Apr-2020,592.00,The Cosy Bedding Company Limited
Bolton MBC,Housing GRF,Work in Progress Additions,09-Apr-2020,94920.00,Aecom Limited
Bolton MBC,Housing GRF,Work in Progress Additions,20-Apr-2020,4000.00,Aecom Limited
Bolton MBC,Housing GRF,Inventory AP Accrual,02-Apr-2020,778.31,Aggregate Industries UK Limited
Bolton MBC,Housing GRF,Inventory AP Accrual,09-Apr-2020,605.59,Aggregate Industries UK Limited
Bolton MBC,Housing GRF,Inventory AP Accrual,02-Apr-2020,576.61,Aggregate Industries UK Limited
Bolton MBC,Housing GRF,Work in Progress Additions,02-Apr-2020,46353.99,Bethell Construction Ltd
Bolton MBC,Housing GRF,Work in Progress Additions,09-Apr-2020,37366.95,Bethell Construction Ltd
Bolton MBC,Housing GRF,Work in Progress Additions,09-Apr-2020,3777.54,Bethell Construction Ltd
Bolton MBC,Housing GRF,Work in Progress Additions,27-Apr-2020,1039.70,Bethell Construction Ltd
Bolton MBC,Housing GRF,Work in Progress Additions,02-Apr-2020,2388.80,Bolton Stone Restoration Ltd
Bolton MBC,Housing GRF,Inventory AP Accrual,09-Apr-2020,2924.26,Colas Ltd
Bolton MBC,Housing GRF,Inventory AP Accrual,02-Apr-2020,711.84,Colas Ltd
Bolton MBC,Housing GRF,Work in Progress Additions,09-Apr-2020,"4,300.00",Greater Manchester Combined Authority#Greater Manchester Police#Greater Manchester Fire & Rescue Service
Bolton MBC,Housing GRF,Inventory AP Accrual,02-Apr-2020,2052.96,Instarmac Group plc
Bolton MBC,Housing GRF,Inventory AP Accrual,02-Apr-2020,565.60,Instarmac Group plc
Bolton MBC,Housing GRF,Work in Progress Additions,02-Apr-2020,34732.81,J Hopkins (Contractors) Ltd
Bolton MBC,Housing GRF,Work in Progress Additions,02-Apr-2020,34102.82,J Hopkins (Contractors) Ltd
Bolton MBC,Housing GRF,Work in Progress Additions,02-Apr-2020,32497.89,J Hopkins (Contractors) Ltd
Bolton MBC,Housing GRF,Work in Progress Additions,16-Apr-2020,29902.93,J Hopkins (Contractors) Ltd
Bolton MBC,Housing GRF,Work in Progress Additions,06-Apr-2020,26536.06,J Hopkins (Contractors) Ltd
Bolton MBC,Housing GRF,Work in Progress Additions,09-Apr-2020,23563.39,J Hopkins (Contractors) Ltd
Bolton MBC,Housing GRF,Work in Progress Additions,16-Apr-2020,22901.91,J Hopkins (Contractors) Ltd
Bolton MBC,Housing GRF,Work in Progress Additions,06-Apr-2020,20748.24,J Hopkins (Contractors) Ltd
Bolton MBC,Housing GRF,Work in Progress Additions,09-Apr-2020,11510.36,J Hopkins (Contractors) Ltd
Bolton MBC,Housing GRF,Work in Progress Additions,09-Apr-2020,9613.77,J Hopkins (Contractors) Ltd
Bolton MBC,Housing GRF,Work in Progress Additions,06-Apr-2020,9113.50,J Hopkins (Contractors) Ltd
Bolton MBC,Housing GRF,Work in Progress Additions,02-Apr-2020,7592.84,J Hopkins (Contractors) Ltd
Bolton MBC,Housing GRF,Work in Progress Additions,09-Apr-2020,5641.25,J Hopkins (Contractors) Ltd
Bolton MBC,Housing GRF,Work in Progress Additions,23-Apr-2020,1787.11,J Hopkins (Contractors) Ltd
Bolton MBC,Housing GRF,Work in Progress Additions,30-Apr-2020,852.00,J Hopkins (Contractors) Ltd
Bolton MBC,Housing GRF,Inventory AP Accrual,02-Apr-2020,1748.00,Mallatite Limited
Bolton MBC,Housing GRF,Inventory AP Accrual,30-Apr-2020,532.24,Rexel UK Limited
Bolton MBC,Housing GRF,Work in Progress Additions,23-Apr-2020,1532.00,Salford City Council
Bolton MBC,Housing GRF,Inventory AP Accrual,20-Apr-2020,1342.01,Slater Safety Supplies
Bolton MBC,Housing GRF,Inventory AP Accrual,06-Apr-2020,1715.40,Smith Bros Ltd
Bolton MBC,Housing GRF,Work in Progress Additions,02-Apr-2020,1920.00,Transport For Greater Manchester
Bolton MBC,Housing GRF,Work in Progress Additions,30-Apr-2020,1290.00,Transport For Greater Manchester
Bolton MBC,Housing GRF,Work in Progress Additions,27-Apr-2020,1026.00,Transport For Greater Manchester
Bolton MBC,Housing GRF,Work in Progress Additions,06-Apr-2020,750.00,Transport For Greater Manchester
Bolton MBC,Public Health,Other Fees,30-Apr-2020,7632.00,Addleshaw Goddard LLP
Bolton MBC,Public Health,Contracted Services,02-Apr-2020,25000.00,Public Health Wales NHS Trust
Bolton MBC,Public Health,Staff Training Courses,02-Apr-2020,1500.00,Robertson Fox Ltd
Bolton MBC,Public Health,Computer Software Licences,02-Apr-2020,750.00,D2 Digital By Design Ltd#1
Bolton MBC,Public Health,Contracted Services,02-Apr-2020,777660.00,Salford City Council
Bolton MBC,Public Health,Contracted Services,14-Apr-2020,2102.79,Blackpool Teaching Hospitals NHS Foundation Trust
Bolton MBC,Public Health,Contracted Services,14-Apr-2020,1595.51,Blackpool Teaching Hospitals NHS Foundation Trust
Bolton MBC,Public Health,Contracted Services,14-Apr-2020,1150.14,Blackpool Teaching Hospitals NHS Foundation Trust
Bolton MBC,Public Health,Contracted Services,14-Apr-2020,1027.66,Blackpool Teaching Hospitals NHS Foundation Trust
Bolton MBC,Public Health,Contracted Services,14-Apr-2020,985.66,Blackpool Teaching Hospitals NHS Foundation Trust
Bolton MBC,Public Health,Contracted Services,14-Apr-2020,890.04,Blackpool Teaching Hospitals NHS Foundation Trust
Bolton MBC,Public Health,Contracted Services,14-Apr-2020,872.53,Blackpool Teaching Hospitals NHS Foundation Trust
Bolton MBC,Public Health,Contracted Services,14-Apr-2020,823.50,Blackpool Teaching Hospitals NHS Foundation Trust
Bolton MBC,Public Health,Contracted Services,14-Apr-2020,741.11,Blackpool Teaching Hospitals NHS Foundation Trust
Bolton MBC,Public Health,Contracted Services,14-Apr-2020,592.87,Blackpool Teaching Hospitals NHS Foundation Trust
Bolton MBC,Public Health,Contracted Services,14-Apr-2020,536.27,Blackpool Teaching Hospitals NHS Foundation Trust
Bolton MBC,Public Health,Vol Assoc Grants - General,16-Apr-2020,917.00,Virgin Care Services Limited
